Payment Date,Invoice Reference,Net Amount,Irrecoverable VAT,Vendor,Expense Area Description,Expense Type,Expense Type Description,Revenue / Capital
01/10/2018,1396,930.00,0.00,Advanced Monitoring Limited,PROPERTY,20000,Ann Contract/Service,Revenue
01/10/2018,1198852,2650.33,0.00,Bayford Oil,HUDDERSFIELD,30200,Vehicle Fuel,Revenue
01/10/2018,1143849,57336.12,0.00,Home Office,FRS CHANGE,43026,Radio Licensing,Revenue
01/10/2018,5000949,864.00,0.00,Leics Fire & Rescue Service,TRAINING DELIVERY,19240,Prot/Prev Tng,Revenue
01/10/2018,IRIN619633,5340.00,496.25,Lex Autolease,OPERATIONS TEAM,34001,Vehicle Leasing,Revenue
01/10/2018,MLIN080952,908.92,90.89,Lex Autolease,OPERATIONS TEAM,34001,Vehicle Leasing,Revenue
01/10/2018,MJA01221,650.00,0.00,Mja Consultants,STANNINGLEY,21013,Electrical Reps (Fr),Revenue
01/10/2018,A0024169,871.12,0.00,Pulse Cashflow Finance,PONTEFRACT,28502,Contract Cleaning,Revenue
01/10/2018,106017,2736.18,0.00,Redfern Travel Ltd,FINANCE SECTION,35000,Franchises,Revenue
01/10/2018,68788,533.20,0.00,Saville Assessment Ltd,EMPLOYMENT SERVICES,42539,Professional Service,Revenue
01/10/2018,0927,575.00,0.00,Wm Projects Ltd,South Kirkby,21014,General Rep & Maint,Revenue
02/10/2018,R13199,3030.00,0.00,Airmax Remote,Information Technlgy,43101,Hardware Mtce&Suppor,Revenue
02/10/2018,1259185,10695.00,0.00,Bayford Oil,TRAINING DELIVERY,30200,Vehicle Fuel,Revenue
02/10/2018,1251332,2673.75,0.00,Bayford Oil,LEEDS,30200,Vehicle Fuel,Revenue
02/10/2018,1243734,3208.50,0.00,Bayford Oil,MOORTOWN,30200,Vehicle Fuel,Revenue
02/10/2018,1238579,3173.26,0.00,Bayford Oil,HUDDERSFIELD,30200,Vehicle Fuel,Revenue
02/10/2018,1239489,3209.57,0.00,Bayford Oil,BRADFORD,30200,Vehicle Fuel,Revenue
02/10/2018,SI-10754,577.46,0.00,Emergency Vehicle Products Ltd,FLEET MAINTENANCE,30001,Dir Cost-Spare Parts,Revenue
02/10/2018,3321385,556.00,0.00,Farnell Elect. Comp. Ltd,FLEET MAINTENANCE,30005,Workshop Equipment,Revenue
02/10/2018,813546,2795.00,0.00,Fire Service College Limited,TRAINING DELIVERY,19239,Ops Supp Tng,Revenue
02/10/2018,216619384,1353.42,0.00,FUCHS LUBRICANTS (UK) LTD,FLEET MAINTENANCE,30102,Dir Cost-Oil & Lubes,Revenue
02/10/2018,216619988,1355.10,0.00,FUCHS LUBRICANTS (UK) LTD,FLEET MAINTENANCE,30102,Dir Cost-Oil & Lubes,Revenue
02/10/2018,9022,33994.39,0.00,Wharfedale Construction Co Ltd,CORPORATE MANAGEMENT & SUPPORT,59052,Cont-External,Capital
03/10/2018,48395,580.00,0.00,Access Doors Systems Ltd,MORLEY,21006,Appliance Bay Doors,Revenue
03/10/2018,E2010227751,2920.93,0.00,Allstar Business Solutions Ltd,VARIOUS,30200,Vehicle Fuel,Revenue
03/10/2018,184997 / 211793,518.85,0.00,Co-Star Electronic Co Ltd,CORPORATE MANAGEMENT & SUPPORT,59165,Vehicles & Plant,Capital
03/10/2018,813545,2200.00,0.00,Fire Service College Limited,TRAINING DELIVERY,19240,Prot/Prev Tng,Revenue
03/10/2018,6223,684.00,0.00,Harry G Rhodes & Sons Ltd,FLEET MANAGEMENT,30004,Rep-Ext Contractors,Revenue
03/10/2018,MLCR080261,3256.93,0.00,Lex Autolease,USAR,34001,Vehicle Leasing,Revenue
03/10/2018,MLCR080260,2827.34,0.00,Lex Autolease,USAR,34001,Vehicle Leasing,Revenue
03/10/2018,EXI1189210,858.24,0.00,Lex Autolease,WATER OFFICE,34001,Vehicle Leasing,Revenue
03/10/2018,EXI1189467,2220.48,0.00,Lex Autolease,Fire Safety Prot,34001,Vehicle Leasing,Revenue
03/10/2018,EXI1179874,2220.48,0.00,Lex Autolease,Fire Safety Prot,34001,Vehicle Leasing,Revenue
03/10/2018,CSI00265,975.45,0.00,Marshall Building Contractors,CORPORATE MANAGEMENT & SUPPORT,59052,Cont-External,Capital
03/10/2018,CSI00267,991.05,0.00,Marshall Building Contractors,CORPORATE MANAGEMENT & SUPPORT,59052,Cont-External,Capital
03/10/2018,MJA01225,682.00,0.00,Mja Consultants,HUDDERSFIELD,21013,Electrical Reps (Fr),Revenue
03/10/2018,25836,681.40,0.00,Network Utilities (Systems) Limited,Information Technlgy,43103,ICT Maintenance & Support,Revenue
03/10/2018,0699652/WSH/103,834.18,0.00,Pelican Engineering Co (Sales),FLEET MANAGEMENT,30004,Rep-Ext Contractors,Revenue
03/10/2018,4244,2290.00,0.00,The Outreach Organisation Ltd,TRAINING DELIVERY,19241,Service Supp Tng,Revenue
03/10/2018,43201,2088.45,0.00,Thomas Jacks Ltd,CORPORATE MANAGEMENT & SUPPORT,59164,Equipment,Capital
04/10/2018,SN2886591,501.27,0.00,Berendsen UK Ltd,SUPPLIES SECTION,40100,Furniture,Revenue
04/10/2018,C/05/088504,3602.15,0.00,Bradford MDC,VARIOUS,28502,Contract Cleaning,Revenue
04/10/2018,C/04/088380,3602.15,0.00,Bradford MDC,VARIOUS,28502,Contract Cleaning,Revenue
04/10/2018,3048725275,1872.50,0.00,British Oxygen Co Ltd,OPERATIONS EQUIPMENT,40005,Operational Equ Pch,Revenue
04/10/2018,40610,560.00,0.00,Enserve Corporation Ltd,VARIOUS,20000,Ann Contract/Service,Revenue
04/10/2018,813570,1634.00,0.00,Fire Service College Limited,TRAINING DELIVERY,19241,Service Supp Tng,Revenue
04/10/2018,5918,2121.00,0.00,Geckops Ltd t/a Gecko Property Solu,PROPERTY,21014,General Rep & Maint,Revenue
04/10/2018,5929,630.00,0.00,Geckops Ltd t/a Gecko Property Solu,PROPERTY,21014,General Rep & Maint,Revenue
04/10/2018,5916,632.00,0.00,Geckops Ltd t/a Gecko Property Solu,PROPERTY,21014,General Rep & Maint,Revenue
04/10/2018,0000142316,5857.40,0.00,Goliath Footwear Ltd,CORPORATE MANAGEMENT & SUPPORT,59164,Equipment,Capital
04/10/2018,970928,1465.00,0.00,Gritit Ltd,VARIOUS,24000,Grounds Maintenance,Revenue
04/10/2018,970926,1318.73,0.00,Gritit Ltd,VARIOUS,24000,Grounds Maintenance,Revenue
04/10/2018,0000236013,3211.80,0.00,M I Supplies Ltd,SUPPLIES SECTION,28501,Cleaning Consumables,Revenue
04/10/2018,SI-101243,959.55,0.00,Medtree,OPERATIONS EQUIPMENT,40005,Operational Equ Pch,Revenue
04/10/2018,MJA01219,9389.22,0.00,Mja Consultants,VARIOUS,20000,Ann Contract/Service,Revenue
04/10/2018,20903,4603.50,0.00,National Compliance & Risk Qualific,TRAINING DELIVERY,19241,Service Supp Tng,Revenue
04/10/2018,A0024170,8262.44,0.00,Pulse Cashflow Finance,VARIOUS,28502,Contract Cleaning,Revenue
04/10/2018,A0024168,5301.19,0.00,Pulse Cashflow Finance,VARIOUS,28502,Contract Cleaning,Revenue
04/10/2018,A0024167,4284.03,0.00,Pulse Cashflow Finance,VARIOUS,28502,Contract Cleaning,Revenue
04/10/2018,9023,1534.95,0.00,Wharfedale Construction Co Ltd,HUDDERSFIELD,21014,General Rep & Maint,Revenue
05/10/2018,026341,3833.30,0.00,BCS Electrics Ltd,VARIOUS,20000,Ann Contract/Service,Revenue
05/10/2018,026351,3880.20,0.00,BCS Electrics Ltd,VARIOUS,20000,Ann Contract/Service,Revenue
05/10/2018,6291219697,7703.14,0.00,Leeds City Council,VARIOUS,28502,Contract Cleaning,Revenue
05/10/2018,91583,3115.93,0.00,Townley Network Solutions Ltd,VARIOUS,43015,Landlines Call Charges,Revenue
08/10/2018,0940000048-070D,2949.83,0.00,Airwave Solutions Ltd,Information Technlgy,43026,Radio Licensing,Revenue
08/10/2018,026338,1952.95,0.00,BCS Electrics Ltd,Dewsbury New,21013,Electrical Reps (Fr),Revenue
08/10/2018,1507912-01,990.27,0.00,Crossroads Truck & Bus Ltd,FLEET MAINTENANCE,30001,Dir Cost-Spare Parts,Revenue
08/10/2018,1507850-01,2471.50,0.00,Crossroads Truck & Bus Ltd,FLEET MAINTENANCE,30001,Dir Cost-Spare Parts,Revenue
08/10/2018,813016981,16062.86,0.00,Easynet Enterprise Services Ltd,VARIOUS,43018,Wan Rental,Revenue
09/10/2018,2220,620.00,0.00,Aire Valley Tree Services Ltd,CORPORATE MANAGEMENT & SUPPORT,59052,Cont-External,Capital
09/10/2018,026377,6299.84,0.00,BCS Electrics Ltd,TRAINING DELIVERY,21013,Electrical Reps (Fr),Revenue
09/10/2018,026378,1675.85,0.00,BCS Electrics Ltd,FLEET MAINTENANCE,21013,Electrical Reps (Fr),Revenue
09/10/2018,0100958,1238.65,0.00,Carter Towler Ltd,CORPORATE MANAGEMENT & SUPPORT,59058,Fee-External,Capital
09/10/2018,0000007128,588.00,0.00,Jafco Tools Ltd,OPERATIONS EQUIPMENT,40005,Operational Equ Pch,Revenue
09/10/2018,0000231310,587.21,0.00,SYNLAB Laboratory Services Ltd,Health & Safety,18301,Specialists Fees,Revenue
09/10/2018,9024,1157.20,0.00,Wharfedale Construction Co Ltd,CORPORATE MANAGEMENT & SUPPORT,59052,Cont-External,Capital
09/10/2018,9105903400180428,4708.11,0.00,Yorkshire Water,VARIOUS,26500,Water - Metered,Revenue
10/10/2018,42622,992.00,0.00,Ask,SUPPLIES SECTION,42100,Stationery,Revenue
10/10/2018,3157152,787.25,0.00,Bristol Uniforms Ltd,SUPPLIES SECTION,41500,Clothing,Revenue
10/10/2018,BANKSWYF/0918/1,900.00,0.00,David Banks,PUBLIC INFORMATION,19201,Training Fees,Revenue
10/10/2018,122153,4125.55,0.00,Keela International Ltd,VARIOUS,40014,USAR - Ppe,Revenue
10/10/2018,122153,2218.80,0.00,Keela International Ltd,VARIOUS,40014,USAR - Ppe,Revenue
10/10/2018,121781,1483.50,0.00,Keela International Ltd,VARIOUS,41500,Clothing,Revenue
10/10/2018,121781,4692.00,0.00,Keela International Ltd,VARIOUS,41500,Clothing,Revenue
10/10/2018,26348,1500.00,0.00,Kirkdale Ind Training Services Ltd,TRAINING DELIVERY,19243,Tech Svcs Tng,Revenue
10/10/2018,MRI7474460,8200.78,662.42,Lex Autolease,VARIOUS,34001,Vehicle Leasing,Revenue
10/10/2018,LGU8ZN4Y,-4745.81,0.00,Npower Ltd,NEW CONTROL PROJECT,25000,Energy-Electric,Revenue
10/10/2018,LGU8ZN4G,-8496.30,0.00,Npower Ltd,PROPERTY,25000,Energy-Electric,Revenue
10/10/2018,LGU8ZN42,-1099.32,0.00,Npower Ltd,LEEDS,25000,Energy-Electric,Revenue
10/10/2018,LGU8ZS45,1101.27,0.00,Npower Ltd,Idle,25000,Energy-Electric,Revenue
10/10/2018,LGU8ZQPC,-1102.59,0.00,Npower Ltd,Idle,25000,Energy-Electric,Revenue
10/10/2018,LGU8R9W2,962.83,0.00,Npower Ltd,RAWDON,25000,Energy-Electric,Revenue
10/10/2018,LGU8R9WV,1456.63,0.00,Npower Ltd,KEIGHLEY,25000,Energy-Electric,Revenue
10/10/2018,LGU82VD7,813.93,0.00,Npower Ltd,Rastrick,25000,Energy-Electric,Revenue
10/10/2018,LGU82VD6,8390.86,0.00,Npower Ltd,PROPERTY,25000,Energy-Electric,Revenue
10/10/2018,LGU82VFB,618.10,0.00,Npower Ltd,Shipley New,25000,Energy-Electric,Revenue
10/10/2018,LGU82VD8,729.79,0.00,Npower Ltd,Dewsbury New,25000,Energy-Electric,Revenue
10/10/2018,LGU82VD9,1014.91,0.00,Npower Ltd,Killingbeck,25000,Energy-Electric,Revenue
10/10/2018,LGU82VFC,4971.03,0.00,Npower Ltd,NEW CONTROL PROJECT,25000,Energy-Electric,Revenue
10/10/2018,LGU84MZJ,696.36,0.00,Npower Ltd,TODMORDEN,25000,Energy-Electric,Revenue
10/10/2018,LGU84MZG,1001.36,0.00,Npower Ltd,ILLINGWORTH,25000,Energy-Electric,Revenue
10/10/2018,LGU82VFD,1831.12,0.00,Npower Ltd,BRADFORD,25000,Energy-Electric,Revenue
10/10/2018,LGU82VFF,748.76,0.00,Npower Ltd,PONTEFRACT,25000,Energy-Electric,Revenue
10/10/2018,LGU84MZF,871.34,0.00,Npower Ltd,GARFORTH,25000,Energy-Electric,Revenue
10/10/2018,LGU84S88,2218.24,0.00,Npower Ltd,WAKEFIELD,25000,Energy-Electric,Revenue
10/10/2018,LGU84MZL,1146.30,0.00,Npower Ltd,Ossett New,25000,Energy-Electric,Revenue
10/10/2018,LGU84MZK,1238.39,0.00,Npower Ltd,South Kirkby,25000,Energy-Electric,Revenue
10/10/2018,LGU82VFJ,1131.71,0.00,Npower Ltd,LEEDS,25000,Energy-Electric,Revenue
10/10/2018,LGU82VFH,694.99,0.00,Npower Ltd,ROTHWELL,25000,Energy-Electric,Revenue
10/10/2018,9981,1238.00,0.00,T Kirk Forestry,National Resilience Distributed Learning,45119,USAR Chainsaw Recert,Revenue
10/10/2018,89000071600,990.00,0.00,West Yorkshire Pension Fund,FINANCE SECTION,40205,Book/Publications,Revenue
10/10/2018,89000071389,1000.00,0.00,West Yorkshire Pension Fund,FINANCE SECTION,40205,Book/Publications,Revenue
10/10/2018,88104,940.80,0.00,Wm Sugden & Sons Ltd,SUPPLIES SECTION,41500,Clothing,Revenue
11/10/2018,2249,625.00,0.00,Aire Valley Tree Services Ltd,HUDDERSFIELD,21014,General Rep & Maint,Revenue
11/10/2018,3288688,2411.69,0.00,CCS Media Ltd,SUPPLIES SECTION,43106,ICT Consumables,Revenue
11/10/2018,42990,900.00,0.00,Leeds Pallet Co.Ltd.,TRAINING DELIVERY,40006,Training Equ Purch,Revenue
11/10/2018,LGU8R9WX,820.86,0.00,Npower Ltd,ODSAL,25000,Energy-Electric,Revenue
11/10/2018,INV-1646,2884.53,0.00,Robert Whetham Associates,PROPERTY,42511,Consultancy Fees,Revenue
12/10/2018,A9980138960,4927.72,0.00,Ats Euromaster Ltd,FLEET MANAGEMENT,30000,Tyre Purchase,Revenue
12/10/2018,6657,649.73,0.00,Delta Clean North Ltd,HUDDERSFIELD,21014,General Rep & Maint,Revenue
12/10/2018,AMA SEPT 18,3636.00,0.00,Dr N A L Smith (Medical Services) L,Health & Safety,42510,Client Med Fees/Exps,Revenue
12/10/2018,L081111,544.60,0.00,Gablesea Ltd,FLEET MAINTENANCE,30001,Dir Cost-Spare Parts,Revenue
12/10/2018,2018/1627,1682.07,0.00,Jeremy Benn Associates Ltd,ODSAL,42511,Consultancy Fees,Revenue
12/10/2018,6013468,530.89,0.00,Stormsaver,Dewsbury New,21014,General Rep & Maint,Revenue
12/10/2018,6013469,530.89,0.00,Stormsaver,Killingbeck,21014,General Rep & Maint,Revenue
12/10/2018,A1801824,1000.00,0.00,Vehicle Bodycare Centre Ltd,FLEET MANAGEMENT,30006,Ins Claims Excess,Revenue
12/10/2018,35100015,574.79,0.00,Volkswagen Van Centre,FLEET MANAGEMENT,30004,Rep-Ext Contractors,Revenue
15/10/2018,SMAI008185,1220.30,0.00,Babcock Critical Serv Ltd (Ma),OPERATIONS EQUIPMENT,40005,Operational Equ Pch,Revenue
15/10/2018,1297142,3724.70,0.00,Bayford Oil,ODSAL,30200,Vehicle Fuel,Revenue
15/10/2018,14435,1600.00,0.00,Bradshaw Gass & Hope Llp,PROPERTY,42511,Consultancy Fees,Revenue
15/10/2018,14433,2275.00,0.00,Bradshaw Gass & Hope Llp,CORPORATE MANAGEMENT & SUPPORT,59058,Fee-External,Capital
15/10/2018,14434,11140.00,0.00,Bradshaw Gass & Hope Llp,CORPORATE MANAGEMENT & SUPPORT,59058,Fee-External,Capital
15/10/2018,CN19677234,1492.92,0.00,Cannon Hygiene Limited,VARIOUS,20000,Ann Contract/Service,Revenue
15/10/2018,175970,3830.32,0.00,Cmt Flexibles Ltd,CORPORATE MANAGEMENT & SUPPORT,59164,Equipment,Capital
15/10/2018,1508064-01,567.38,0.00,Crossroads Truck & Bus Ltd,FLEET MAINTENANCE,30001,Dir Cost-Spare Parts,Revenue
15/10/2018,WYFRS 7,11583.00,0.00,KINASTON ASSOCIATES LTD,TRAINING DELIVERY,19241,Service Supp Tng,Revenue
15/10/2018,CSI0078,22424.29,0.00,Marshall Building Contractors,CORPORATE MANAGEMENT & SUPPORT,59052,Cont-External,Capital
15/10/2018,MJA01232,1178.00,0.00,Mja Consultants,NORMANTON,21013,Electrical Reps (Fr),Revenue
15/10/2018,MJA01220,2820.00,0.00,Mja Consultants,VARIOUS,20000,Ann Contract/Service,Revenue
15/10/2018,1819189,1820.00,0.00,Pepperdog Design Ltd,PUBLIC INFORMATION,40221,Publty/Promtn/Media,Revenue
15/10/2018,135,1995.00,0.00,Spectra Compliance Ltd,TRAINING DELIVERY,19241,Service Supp Tng,Revenue
15/10/2018,23538,2000.00,0.00,Thornley & Lumb Partnership Ltd,CORPORATE MANAGEMENT & SUPPORT,59058,Fee-External,Capital
15/10/2018,655476290000006,931.64,0.00,Yorkshire Water,CORPORATE MANAGEMENT & SUPPORT,59165,Vehicles & Plant,Capital
15/10/2018,655476330000004,1427.11,0.00,Yorkshire Water,CORPORATE MANAGEMENT & SUPPORT,59165,Vehicles & Plant,Capital
15/10/2018,65547630000000X,1018.29,0.00,Yorkshire Water,CORPORATE MANAGEMENT & SUPPORT,59165,Vehicles & Plant,Capital
15/10/2018,655476310000008,958.29,0.00,Yorkshire Water,CORPORATE MANAGEMENT & SUPPORT,59165,Vehicles & Plant,Capital
15/10/2018,655476340000002,1465.11,0.00,Yorkshire Water,CORPORATE MANAGEMENT & SUPPORT,59165,Vehicles & Plant,Capital
15/10/2018,655476360000009,1427.11,0.00,Yorkshire Water,CORPORATE MANAGEMENT & SUPPORT,59165,Vehicles & Plant,Capital
15/10/2018,655476370000007,1538.11,0.00,Yorkshire Water,CORPORATE MANAGEMENT & SUPPORT,59165,Vehicles & Plant,Capital
15/10/2018,655476380000005,1427.11,0.00,Yorkshire Water,CORPORATE MANAGEMENT & SUPPORT,59165,Vehicles & Plant,Capital
15/10/2018,655476400000007,868.83,0.00,Yorkshire Water,CORPORATE MANAGEMENT & SUPPORT,59165,Vehicles & Plant,Capital
15/10/2018,655476410000005,619.21,0.00,Yorkshire Water,CORPORATE MANAGEMENT & SUPPORT,59165,Vehicles & Plant,Capital
15/10/2018,655476390000003,868.83,0.00,Yorkshire Water,CORPORATE MANAGEMENT & SUPPORT,59165,Vehicles & Plant,Capital
15/10/2018,2018/1,1000.00,0.00,Zahid Hamid,CORPORATE DIVERSITY,42511,Consultancy Fees,Revenue
16/10/2018,42715,770.00,0.00,Ask,SUPPLIES SECTION,40100,Furniture,Revenue
16/10/2018,26540,866.40,0.00,Crossley Evans Ltd,TRAINING DELIVERY,28506,Refuse Collect/Disp,Revenue
16/10/2018,26470,873.60,0.00,Crossley Evans Ltd,TRAINING DELIVERY,28506,Refuse Collect/Disp,Revenue
16/10/2018,26539,1063.20,0.00,Crossley Evans Ltd,TRAINING DELIVERY,28506,Refuse Collect/Disp,Revenue
16/10/2018,26472,1144.80,0.00,Crossley Evans Ltd,TRAINING DELIVERY,28506,Refuse Collect/Disp,Revenue
16/10/2018,26608,830.40,0.00,Crossley Evans Ltd,Cleckheaton,21014,General Rep & Maint,Revenue
16/10/2018,08/18 13,11035.00,0.00,First Products (Sussex) Limited,SUPPLIES SECTION,41500,Clothing,Revenue
16/10/2018,INV-211602-Y1F5,4853.00,0.00,The Institution of Fire Engineers (,TRAINING DELIVERY,19241,Service Supp Tng,Revenue
16/10/2018,TK124264,1064.50,0.00,Thomas Kneale & Co Ltd,Fire Safety Prev,45108,Fire Prevn Pblcty,Revenue
16/10/2018,0161,800.00,0.00,TPL Experiences & Events,TRAINING DELIVERY,19241,Service Supp Tng,Revenue
16/10/2018,5279,750.00,0.00,Ulysses (2000) Ltd,Information Technlgy,43103,ICT Maintenance & Support,Revenue
16/10/2018,5991,8000.00,0.00,Virtual College Ltd,TRAINING DELIVERY,19241,Service Supp Tng,Revenue
16/10/2018,508,2656.00,0.00,Watershed (Roofing) Ltd,PROPERTY,21014,General Rep & Maint,Revenue
17/10/2018,E2010281605,2553.19,0.00,Allstar Business Solutions Ltd,VARIOUS,30200,Vehicle Fuel,Revenue
17/10/2018,1809267301,15523.20,0.00,Avepoint Uk Ltd,Information Technlgy,43103,ICT Maintenance & Support,Revenue
17/10/2018,1315457,4771.80,0.00,Bayford Oil,FAIRWEATHER GREEN,30200,Vehicle Fuel,Revenue
17/10/2018,INV-0072,2430.00,0.00,Clean Kitchen Limited,RECRUITS,40502,Food,Revenue
17/10/2018,1508439-01,522.30,0.00,Crossroads Truck & Bus Ltd,FLEET MAINTENANCE,30001,Dir Cost-Spare Parts,Revenue
17/10/2018,#5,792.00,0.00,D.V Optical (Openshaw Opticians),Health & Safety,18301,Specialists Fees,Revenue
17/10/2018,68181,2010.00,0.00,Delta Fire Ltd,OPERATIONS EQUIPMENT,40005,Operational Equ Pch,Revenue
17/10/2018,813867,1872.00,0.00,Fire Service College Limited,TRAINING DELIVERY,19239,Ops Supp Tng,Revenue
17/10/2018,813903,1634.00,0.00,Fire Service College Limited,TRAINING DELIVERY,19241,Service Supp Tng,Revenue
17/10/2018,0000142761,1027.00,0.00,Goliath Footwear Ltd,SUPPLIES SECTION,41500,Clothing,Revenue
17/10/2018,0000142772,2788.31,0.00,Goliath Footwear Ltd,SUPPLIES SECTION,41500,Clothing,Revenue
17/10/2018,0000142773,6727.50,0.00,Goliath Footwear Ltd,SUPPLIES SECTION,41500,Clothing,Revenue
17/10/2018,1144069,57336.12,0.00,Home Office,FRS CHANGE,43026,Radio Licensing,Revenue
17/10/2018,77892,851.20,0.00,Lsi Limited,Fire Safety Prev,45108,Fire Prevn Pblcty,Revenue
17/10/2018,854/PS/01,720.00,0.00,Patricia Haigh,Health & Safety,18301,Specialists Fees,Revenue
17/10/2018,1905,605.21,0.00,Trafficlear Ltd,FLEET MANAGEMENT,34002,Vhcle Leas Misc Exp,Revenue
17/10/2018,89131034,6117.77,0.00,Vodafone (Mobiles),Information Technlgy,43017,Corporate Mobile Phone,Revenue
18/10/2018,50498,2865.00,0.00,Ability Smart Ltd,CORPORATE DIVERSITY,42511,Consultancy Fees,Revenue
18/10/2018,R13100,1590.00,0.00,Airmax Remote,Information Technlgy,43101,Hardware Mtce&Suppor,Revenue
18/10/2018,CNR995,-3090.00,0.00,Airmax Remote,Information Technlgy,30100,Road Fund Licences,Revenue
18/10/2018,R13316,3090.00,0.00,Airmax Remote,Information Technlgy,30100,Road Fund Licences,Revenue
18/10/2018,2039254-01,1963.07,0.00,Crossroads Truck & Bus Ltd,FLEET MANAGEMENT,30004,Rep-Ext Contractors,Revenue
18/10/2018,2046494,1263.20,0.00,Giffard Newton & Sons Ltd,SUPPLIES SECTION,41500,Clothing,Revenue
18/10/2018,N-46446,3000.00,0.00,Gordon Poole Agency,EMPLOYEE RESOURCING,42511,Consultancy Fees,Revenue
18/10/2018,16223,624.80,0.00,Heavy Woollen Textile Co Ltd,SUPPLIES SECTION,41500,Clothing,Revenue
18/10/2018,INV003006,9990.00,0.00,Lemongrass Consulting,Information Technlgy,43030,SAP running Costs,Revenue
18/10/2018,MLIN080580,1123.44,0.00,Lex Autolease,TRAINING DELIVERY,34001,Vehicle Leasing,Revenue
18/10/2018,3433,1000.00,0.00,Red Bullet,PUBLIC INFORMATION,40221,Publty/Promtn/Media,Revenue
19/10/2018,ARCV225909,2230.00,0.00,Alliance Automotive UK CV Ltd T/a,FLEET MAINTENANCE,30001,Dir Cost-Spare Parts,Revenue
19/10/2018,CN19784070,1396.74,0.00,Cannon Hygiene Limited,VARIOUS,20000,Ann Contract/Service,Revenue
19/10/2018,15618687,1174.55,0.00,JCT600 Body Clinic,FLEET MANAGEMENT,30006,Ins Claims Excess,Revenue
19/10/2018,6291230003,7703.14,0.00,Leeds City Council,VARIOUS,28502,Contract Cleaning,Revenue
19/10/2018,MRI7546604,1782.96,0.00,Lex Autolease,Fire Safety Prot,34001,Vehicle Leasing,Revenue
19/10/2018,MRI7546615,1782.96,0.00,Lex Autolease,Fire Safety Prot,34001,Vehicle Leasing,Revenue
19/10/2018,MRI7547390,1782.96,0.00,Lex Autolease,Fire Safety Prot,34001,Vehicle Leasing,Revenue
19/10/2018,MRI7546978,1782.96,0.00,Lex Autolease,Fire Safety Prot,34001,Vehicle Leasing,Revenue
19/10/2018,MRI7547559,1782.96,0.00,Lex Autolease,Fire Safety Prot,34001,Vehicle Leasing,Revenue
19/10/2018,MRI7546614,1782.96,0.00,Lex Autolease,Fire Safety Prot,34001,Vehicle Leasing,Revenue
19/10/2018,MC/169,8325.00,0.00,Montgomery & Coupers Ltd,VARIOUS,21014,General Rep & Maint,Revenue
19/10/2018,811,875.00,0.00,SJ Facilities,SUPPLIES SECTION,21014,General Rep & Maint,Revenue
19/10/2018,TFM608/06,4750.00,0.00,Thomson FM Ltd,PROPERTY,42511,Consultancy Fees,Revenue
22/10/2018,B-18679,3375.00,0.00,Acorn Analytical Services Ltd,CORPORATE MANAGEMENT & SUPPORT,59058,Fee-External,Capital
22/10/2018,3647,696.00,0.00,Cafe Perfection,Dewsbury New,21013,Electrical Reps (Fr),Revenue
22/10/2018,8423,2000.00,0.00,DPP One Limited,CORPORATE MANAGEMENT & SUPPORT,59058,Fee-External,Capital
22/10/2018,70584,1209.50,0.00,Foulds Lifts,TRAINING DELIVERY,21014,General Rep & Maint,Revenue
22/10/2018,69763,560.00,0.00,Foulds Lifts,TRAINING DELIVERY,21013,Electrical Reps (Fr),Revenue
22/10/2018,101517,-1209.50,0.00,Foulds Lifts,TRAINING DELIVERY,21014,General Rep & Maint,Revenue
22/10/2018,101506,-560.00,0.00,Foulds Lifts,TRAINING DELIVERY,21013,Electrical Reps (Fr),Revenue
22/10/2018,971364,800.00,0.00,Gritit Ltd,PROPERTY,24000,Grounds Maintenance,Revenue
22/10/2018,1383,750.00,0.00,Hall Lane Recyclers Ltd,TRAINING DELIVERY,40025,Scrap Cars Purch,Revenue
22/10/2018,5501760574,2500.00,0.00,KPMG LLP,FINANCE SECTION,42539,Professional Service,Revenue
22/10/2018,MRI7614001,29252.53,2177.02,Lex Autolease,OPERATIONS TEAM,34001,Vehicle Leasing,Revenue
22/10/2018,14300,3435.00,0.00,Lk Consult Limited,CORPORATE MANAGEMENT & SUPPORT,59058,Fee-External,Capital
22/10/2018,40158981,-2180.00,0.00,Local Government Association,CORPORATE SERVICES,43501,Conference Expenses,Revenue
22/10/2018,40158980,1090.00,0.00,Local Government Association,CORPORATE SERVICES,43501,Conference Expenses,Revenue
22/10/2018,40160333,1580.00,0.00,Local Government Association,Corporate Governance,43501,Conference Expenses,Revenue
22/10/2018,XASI4028295,2263.89,0.00,Police And Crime Commissioner WY,Comah,43500,Subsistence Allowncs,Revenue
22/10/2018,165616,8556.00,0.00,Respirex International,CORPORATE MANAGEMENT & SUPPORT,59164,Equipment,Capital
22/10/2018,13064,9159.99,0.00,Rig Equipment Limited,CORPORATE MANAGEMENT & SUPPORT,59164,Equipment,Capital
22/10/2018,23546,2000.00,0.00,Thornley & Lumb Partnership Ltd,CORPORATE MANAGEMENT & SUPPORT,59058,Fee-External,Capital
22/10/2018,19-R1390,12330.00,0.00,Weber Rescue Uk Ltd,CORPORATE MANAGEMENT & SUPPORT,59164,Equipment,Capital
22/10/2018,9006,20408.12,0.00,Wharfedale Construction Co Ltd,CORPORATE MANAGEMENT & SUPPORT,59052,Cont-External,Capital
22/10/2018,655463550000000,619.21,0.00,Yorkshire Water,CORPORATE MANAGEMENT & SUPPORT,59164,Equipment,Capital
22/10/2018,655463480000008,958.29,0.00,Yorkshire Water,CORPORATE MANAGEMENT & SUPPORT,59165,Vehicles & Plant,Capital
22/10/2018,65532237000000X,1387.42,0.00,Yorkshire Water,CORPORATE MANAGEMENT & SUPPORT,59165,Vehicles & Plant,Capital
22/10/2018,655475640000008,683.21,0.00,Yorkshire Water,CORPORATE MANAGEMENT & SUPPORT,59165,Vehicles & Plant,Capital
22/10/2018,65547563000000X,681.21,0.00,Yorkshire Water,CORPORATE MANAGEMENT & SUPPORT,59165,Vehicles & Plant,Capital
22/10/2018,655475620000001,667.21,0.00,Yorkshire Water,CORPORATE MANAGEMENT & SUPPORT,59165,Vehicles & Plant,Capital
22/10/2018,655475600000005,619.21,0.00,Yorkshire Water,CORPORATE MANAGEMENT & SUPPORT,59165,Vehicles & Plant,Capital
22/10/2018,655475580000003,958.29,0.00,Yorkshire Water,CORPORATE MANAGEMENT & SUPPORT,59165,Vehicles & Plant,Capital
22/10/2018,655475610000003,619.21,0.00,Yorkshire Water,CORPORATE MANAGEMENT & SUPPORT,59165,Vehicles & Plant,Capital
22/10/2018,655475590000001,868.83,0.00,Yorkshire Water,CORPORATE MANAGEMENT & SUPPORT,59165,Vehicles & Plant,Capital
22/10/2018,655475570000005,958.29,0.00,Yorkshire Water,CORPORATE MANAGEMENT & SUPPORT,59165,Vehicles & Plant,Capital
22/10/2018,655491290000005,676.21,0.00,Yorkshire Water,CORPORATE MANAGEMENT & SUPPORT,59165,Vehicles & Plant,Capital
22/10/2018,655491270000009,619.21,0.00,Yorkshire Water,CORPORATE MANAGEMENT & SUPPORT,59165,Vehicles & Plant,Capital
22/10/2018,655491250000002,981.83,0.00,Yorkshire Water,CORPORATE MANAGEMENT & SUPPORT,59165,Vehicles & Plant,Capital
22/10/2018,655491220000008,1427.11,0.00,Yorkshire Water,CORPORATE MANAGEMENT & SUPPORT,59165,Vehicles & Plant,Capital
22/10/2018,655491300000009,618.11,0.00,Yorkshire Water,CORPORATE MANAGEMENT & SUPPORT,59165,Vehicles & Plant,Capital
22/10/2018,655491280000007,619.21,0.00,Yorkshire Water,CORPORATE MANAGEMENT & SUPPORT,59165,Vehicles & Plant,Capital
22/10/2018,655491260000000,619.21,0.00,Yorkshire Water,CORPORATE MANAGEMENT & SUPPORT,59165,Vehicles & Plant,Capital
22/10/2018,655491240000004,868.83,0.00,Yorkshire Water,CORPORATE MANAGEMENT & SUPPORT,59165,Vehicles & Plant,Capital
23/10/2018,43049,921.12,0.00,Ask,SUPPLIES SECTION,43106,ICT Consumables,Revenue
23/10/2018,0000103171,10500.00,0.00,BIP Solutions,FINANCE SECTION,44600,Subscriptions,Revenue
23/10/2018,3049432143,1907.70,0.00,British Oxygen Co Ltd,VARIOUS,40005,Operational Equ Pch,Revenue
23/10/2018,RF18/11477-4370,1500.00,0.00,Deacon & Jones LLP,PROPERTY,42511,Consultancy Fees,Revenue
23/10/2018,813901,2795.00,0.00,Fire Service College Limited,TRAINING DELIVERY,19239,Ops Supp Tng,Revenue
23/10/2018,I12835,900.00,0.00,Highwire Ltd,PROPERTY,21014,General Rep & Maint,Revenue
23/10/2018,9240,6255.00,0.00,Ioda Limited,TRAINING DELIVERY,19241,Service Supp Tng,Revenue
23/10/2018,INV26526,620.00,0.00,Kirkdale Ind Training Services Ltd,TRAINING DELIVERY,19243,Tech Svcs Tng,Revenue
23/10/2018,7989,5512.00,0.00,Performance Monitoring Sys Ltd,Information Technlgy,43103,ICT Maintenance & Support,Revenue
23/10/2018,INV223176,933.50,0.00,Refreshment Systems Ltd,TRAINING DELIVERY,40502,Food,Revenue
23/10/2018,127156,638.50,0.00,Refreshment Systems Ltd,TRAINING DELIVERY,40502,Food,Revenue
23/10/2018,10023,2372.00,0.00,T Kirk Forestry,National Resilience Distributed Learning,45123,Chainsaw Operator,Revenue
23/10/2018,511415,593.33,0.00,Tees Active Limited,TRAINING DELIVERY,19241,Service Supp Tng,Revenue
23/10/2018,INV-17561,774.90,0.00,Total ID Ltd,COMMAND TRAINING,42100,Stationery,Revenue
23/10/2018,SI-1201,995.00,0.00,Uptime Technology Limited,TRAINING DELIVERY,19235,Emp Svc Tng,Revenue
24/10/2018,INV02587,6006.00,0.00,3Tc Software Ltd,Information Technlgy,43103,ICT Maintenance & Support,Revenue
24/10/2018,43052,916.49,0.00,Ask,SUPPLIES SECTION,42100,Stationery,Revenue
24/10/2018,242395,559.50,0.00,Britannia Fire Limited,TRAINING DELIVERY,40006,Training Equ Purch,Revenue
24/10/2018,IN18092572,727.25,0.00,Calderdale Met Borough Council,Calderdale Dist Com,42600,Bike Library Scheme,Revenue
24/10/2018,IN18113951,884.27,0.00,Calderdale Met Borough Council,Calderdale Dist Com,42600,Bike Library Scheme,Revenue
24/10/2018,21327,712.00,0.00,Dale Products (Plastics) Limited,OPERATIONS EQUIPMENT,40005,Operational Equ Pch,Revenue
24/10/2018,2910141809,1200.00,0.00,Draeger Ltd,OPERATIONS EQUIPMENT,40005,Operational Equ Pch,Revenue
24/10/2018,971363,1318.73,0.00,Gritit Ltd,VARIOUS,24000,Grounds Maintenance,Revenue
24/10/2018,971365,1465.00,0.00,Gritit Ltd,VARIOUS,24000,Grounds Maintenance,Revenue
24/10/2018,I12831,2039.57,0.00,Highwire Ltd,Shipley New,21014,General Rep & Maint,Revenue
24/10/2018,MJA01240,1779.00,0.00,Mja Consultants,TODMORDEN,21013,Electrical Reps (Fr),Revenue
24/10/2018,LGU8ZPRB,1224.88,0.00,Npower Ltd,LEEDS,25000,Energy-Electric,Revenue
24/10/2018,LGU8ZPRH,1099.32,0.00,Npower Ltd,LEEDS,25000,Energy-Electric,Revenue
24/10/2018,LGU8ZPRG,4745.81,0.00,Npower Ltd,NEW CONTROL PROJECT,25000,Energy-Electric,Revenue
24/10/2018,LGU8ZPRF,8496.30,0.00,Npower Ltd,PROPERTY,25000,Energy-Electric,Revenue
24/10/2018,LGU8ZPQ9,4119.37,0.00,Npower Ltd,NEW CONTROL PROJECT,25000,Energy-Electric,Revenue
24/10/2018,LGU9BPPW,1202.29,0.00,Npower Ltd,MOORTOWN,25000,Energy-Electric,Revenue
24/10/2018,46926,1029.30,0.00,Safequip Ltd,CORPORATE MANAGEMENT & SUPPORT,59164,Equipment,Capital
24/10/2018,145729,4303.05,0.00,Southcombe Brothers Ltd,SUPPLIES SECTION,41500,Clothing,Revenue
24/10/2018,CD20181029405,713.51,0.00,Survitec Service & Distribution Ltd,OPERATIONS EQUIPMENT,40005,Operational Equ Pch,Revenue
24/10/2018,4115,770.00,0.00,The Outreach Organisation Ltd,TRAINING DELIVERY,19241,Service Supp Tng,Revenue
24/10/2018,4137,1145.00,0.00,The Outreach Organisation Ltd,TRAINING DELIVERY,19241,Service Supp Tng,Revenue
24/10/2018,88911,1440.00,0.00,Wm Sugden & Sons Ltd,SUPPLIES SECTION,41500,Clothing,Revenue
25/10/2018,R13354,3060.00,0.00,Airmax Remote,Information Technlgy,43101,Hardware Mtce&Suppor,Revenue
25/10/2018,R12158,500.00,0.00,Airmax Remote,Information Technlgy,43101,Hardware Mtce&Suppor,Revenue
25/10/2018,424949,654.95,0.00,B B N Fastnet,FLEET MAINTENANCE,30005,Workshop Equipment,Revenue
25/10/2018,1365317,4316.40,0.00,Bayford Oil,Shipley New,30200,Vehicle Fuel,Revenue
25/10/2018,1340782,3238.38,0.00,Bayford Oil,KEIGHLEY,30200,Vehicle Fuel,Revenue
25/10/2018,026439,1295.91,0.00,BCS Electrics Ltd,VARIOUS,21013,Electrical Reps (Fr),Revenue
25/10/2018,026436,609.75,0.00,BCS Electrics Ltd,TRAINING DELIVERY,21013,Electrical Reps (Fr),Revenue
25/10/2018,SN2931745,641.79,0.00,Berendsen UK Ltd,SUPPLIES SECTION,41900,Laundry,Revenue
25/10/2018,2019824,900.00,0.00,Cleanbright (Leeds) Ltd,PROPERTY,28500,Window Cleaning,Revenue
25/10/2018,2020216,3460.00,0.00,Cleanbright (Leeds) Ltd,VARIOUS,28500,Window Cleaning,Revenue
25/10/2018,1508698-01,6397.24,0.00,Crossroads Truck & Bus Ltd,FLEET MAINTENANCE,30001,Dir Cost-Spare Parts,Revenue
25/10/2018,21680,3229.25,0.00,Emergency One (Uk) Ltd,FLEET MANAGEMENT,30004,Rep-Ext Contractors,Revenue
25/10/2018,21514,565.80,0.00,Emergency One (Uk) Ltd,FLEET MAINTENANCE,30001,Dir Cost-Spare Parts,Revenue
25/10/2018,21701,903.48,0.00,Emergency One (Uk) Ltd,FLEET MAINTENANCE,30001,Dir Cost-Spare Parts,Revenue
25/10/2018,2050,850.00,0.00,Lk Management Ltd,PROPERTY,20001,Water Management Legionella,Revenue
25/10/2018,LGU8R9W3,1182.95,0.00,Npower Ltd,BINGLEY,25000,Energy-Electric,Revenue
25/10/2018,LGU9CPY3,816.41,0.00,Npower Ltd,Rastrick,25000,Energy-Electric,Revenue
25/10/2018,LGU9CPY4,753.61,0.00,Npower Ltd,Dewsbury New,25000,Energy-Electric,Revenue
25/10/2018,LGU9CPY2,8190.41,0.00,Npower Ltd,PROPERTY,25000,Energy-Electric,Revenue
25/10/2018,LGU9CPY9,790.82,0.00,Npower Ltd,PONTEFRACT,25000,Energy-Electric,Revenue
25/10/2018,LGU9CPY8,1860.81,0.00,Npower Ltd,BRADFORD,25000,Energy-Electric,Revenue
25/10/2018,LGU9CPY7,4932.94,0.00,Npower Ltd,NEW CONTROL PROJECT,25000,Energy-Electric,Revenue
25/10/2018,LGU9CPY6,604.00,0.00,Npower Ltd,Shipley New,25000,Energy-Electric,Revenue
25/10/2018,LGU9CPY5,1036.59,0.00,Npower Ltd,Killingbeck,25000,Energy-Electric,Revenue
25/10/2018,7397,1480.00,0.00,Site Surveying Services Ltd,CORPORATE MANAGEMENT & SUPPORT,59058,Fee-External,Capital
25/10/2018,656416600000009,619.21,0.00,Yorkshire Water,CORPORATE MANAGEMENT & SUPPORT,59165,Vehicles & Plant,Capital
26/10/2018,B-19126,900.00,0.00,Acorn Analytical Services Ltd,CORPORATE MANAGEMENT & SUPPORT,59052,Cont-External,Capital
26/10/2018,B-19135,2440.00,0.00,Acorn Analytical Services Ltd,PROPERTY,21007,Asbestos/Hazard Mats,Revenue
26/10/2018,B-18958,550.00,0.00,Acorn Analytical Services Ltd,KEIGHLEY,21007,Asbestos/Hazard Mats,Revenue
26/10/2018,026444,527.64,0.00,BCS Electrics Ltd,ROTHWELL,21013,Electrical Reps (Fr),Revenue
26/10/2018,1508891-01,1991.98,0.00,Crossroads Truck & Bus Ltd,FLEET MAINTENANCE,30001,Dir Cost-Spare Parts,Revenue
26/10/2018,1508803-01,596.54,0.00,Crossroads Truck & Bus Ltd,FLEET MAINTENANCE,30001,Dir Cost-Spare Parts,Revenue
26/10/2018,LGU9CPZD,1159.13,0.00,Npower Ltd,LEEDS,25000,Energy-Electric,Revenue
26/10/2018,LGU9CPZC,691.90,0.00,Npower Ltd,ROTHWELL,25000,Energy-Electric,Revenue
26/10/2018,106442,2555.82,0.00,Redfern Travel Ltd,FINANCE SECTION,35000,Franchises,Revenue
29/10/2018,C/06/088580,507.31,0.00,Bradford Met District Council,Shipley New,28502,Contract Cleaning,Revenue
29/10/2018,C/06/088579,570.77,0.00,Bradford Met District Council,KEIGHLEY,28502,Contract Cleaning,Revenue
29/10/2018,C/06/088582,507.31,0.00,Bradford Met District Council,ODSAL,28502,Contract Cleaning,Revenue
29/10/2018,C/06/088583,913.23,0.00,Bradford Met District Council,FAIRWEATHER GREEN,28502,Contract Cleaning,Revenue
29/10/2018,C/06/088628,3602.15,0.00,Bradford Met District Council,VARIOUS,28502,Contract Cleaning,Revenue
29/10/2018,C/06/088584,1014.69,0.00,Bradford Met District Council,BRADFORD,28502,Contract Cleaning,Revenue
29/10/2018,C/06/088588,507.31,0.00,Bradford Met District Council,BRADFORD,28502,Contract Cleaning,Revenue
29/10/2018,N-46532,3000.00,0.00,Gordon Poole Agency,EMPLOYEE RESOURCING,42511,Consultancy Fees,Revenue
29/10/2018,3442,600.00,0.00,Red Bullet,VARIOUS,45108,Fire Prevn Pblcty,Revenue
30/10/2018,48734,680.00,0.00,Access Doors Systems Ltd,LEEDS,21006,Appliance Bay Doors,Revenue
30/10/2018,026466,2941.96,0.00,BCS Electrics Ltd,TRAINING DELIVERY,21013,Electrical Reps (Fr),Revenue
30/10/2018,026448,545.44,0.00,BCS Electrics Ltd,HUDDERSFIELD,21013,Electrical Reps (Fr),Revenue
30/10/2018,3674,696.00,0.00,Cafe Perfection,PONTEFRACT,21013,Electrical Reps (Fr),Revenue
30/10/2018,MJA01247,3112.72,0.00,Mja Consultants,CORPORATE MANAGEMENT & SUPPORT,59052,Cont-External,Capital
30/10/2018,MC/171,755.00,0.00,Montgomery & Coupers Ltd,VARIOUS,42511,Consultancy Fees,Revenue
30/10/2018,166688,965.14,0.00,PMD Technologies Ltd,ILKLEY,21014,General Rep & Maint,Revenue
31/10/2018,3679,696.00,0.00,Cafe Perfection,HALIFAX,21013,Electrical Reps (Fr),Revenue
31/10/2018,IN18108490,570.00,0.00,Calderdale Met Borough Council,EMPLOYMENT SERVICES,18100,Staff Advertising,Revenue
31/10/2018,INV/10214,2580.00,0.00,DFP Services Limited,Rastrick,20000,Ann Contract/Service,Revenue
31/10/2018,166720,3245.12,0.00,PMD Technologies Ltd,TRAINING DELIVERY,21014,General Rep & Maint,Revenue
31/10/2018,14317/6,3537.80,0.00,Rance Booth & Smith Architects,PROPERTY,42511,Consultancy Fees,Revenue
31/10/2018,9057460736,787.00,0.00,Royal Mail Retail Finance Ops,CORPORATE SERVICES,43000,Postages,Revenue
31/10/2018,756,545.00,0.00,SJ Facilities,FAIRWEATHER GREEN,21014,General Rep & Maint,Revenue
02/11/2018,27123,723.00,0.00,Five Star Automotive Ltd,FLEET MAINTENANCE,30001,Dir Cost-Spare Parts,Revenue
02/11/2018,71881,528.00,0.00,Foulds Lifts,TRAINING DELIVERY,21013,Electrical Reps (Fr),Revenue
02/11/2018,0000044969,793.86,0.00,John Dennis Coachbuilders,FLEET MAINTENANCE,30001,Dir Cost-Spare Parts,Revenue
02/11/2018,INV-20482,856.83,0.00,Liverpool Power Boats Ltd,OPERATIONS EQUIPMENT,40005,Operational Equ Pch,Revenue
02/11/2018,22695,1644.59,0.00,Mitton Aftercare Ltd,RAWDON,21012,Heating & Mechanical,Revenue
02/11/2018,MJA01257,1798.00,0.00,Mja Consultants,STANNINGLEY,21013,Electrical Reps (Fr),Revenue
02/11/2018,21401,4690.00,0.00,Pennine Pneumatic Services Ltd,OPERATIONS EQUIPMENT,40005,Operational Equ Pch,Revenue
02/11/2018,9105903400180803,11196.91,0.00,Yorkshire Water,VARIOUS,26500,Water - Metered,Revenue
02/11/2018,9105903400180703,13613.87,0.00,Yorkshire Water,VARIOUS,26500,Water - Metered,Revenue
02/11/2018,655499500000004,1427.11,0.00,Yorkshire Water,HUNSLET,21014,General Rep & Maint,Revenue
05/11/2018,0940000048-071D,1250.54,0.00,Airwave Solutions Ltd,Information Technlgy,43026,Radio Licensing,Revenue
05/11/2018,E2010344034,3114.58,0.00,Allstar Business Solutions Ltd,VARIOUS,30200,Vehicle Fuel,Revenue
05/11/2018,92075A,3168.28,0.00,Townley Network Solutions Ltd,VARIOUS,43018,Wan Rental,Revenue
06/11/2018,611325,1425.00,0.00,Access Uk Ltd,ICT Strategy,43037,HR & Rostering,Revenue
06/11/2018,616642,950.00,0.00,Access Uk Ltd,ICT Strategy,43037,HR & Rostering,Revenue
06/11/2018,616864,950.00,0.00,Access Uk Ltd,ICT Strategy,43037,HR & Rostering,Revenue
06/11/2018,026517,693.49,0.00,BCS Electrics Ltd,PROPERTY,21013,Electrical Reps (Fr),Revenue
06/11/2018,2020262,1850.00,0.00,Cleanbright (Leeds) Ltd,NORMANTON,21014,General Rep & Maint,Revenue
06/11/2018,839,1485.00,0.00,SJ Facilities,WETHERBY,21014,General Rep & Maint,Revenue
06/11/2018,9105903400180830,5203.05,0.00,Yorkshire Water,VARIOUS,26500,Water - Metered,Revenue
07/11/2018,617223,1063.45,0.00,Access Uk Ltd,ICT Strategy,43037,HR & Rostering,Revenue
07/11/2018,617241,1900.00,0.00,Access Uk Ltd,ICT Strategy,43037,HR & Rostering,Revenue
07/11/2018,934064146,668.68,0.00,Arco Group,VARIOUS,41500,Clothing,Revenue
07/11/2018,1394088,3314.10,0.00,Bayford Oil,Dewsbury New,30200,Vehicle Fuel,Revenue
07/11/2018,INV27900,12023.00,0.00,Clan Tool & Plant Hire ltd,OPERATIONS EQUIPMENT,40005,Operational Equ Pch,Revenue
07/11/2018,SL0948,1200.92,0.00,Colin Peel,Information Technlgy,43103,ICT Maintenance & Support,Revenue
07/11/2018,SL0950,1200.92,0.00,Colin Peel,Information Technlgy,43103,ICT Maintenance & Support,Revenue
07/11/2018,10/18,4545.00,0.00,Dr N A L Smith (Medical Services) L,Health & Safety,42510,Client Med Fees/Exps,Revenue
07/11/2018,LGU4DTPT,621.44,0.00,Npower Ltd,MYTHOLMROYD,25000,Energy-Electric,Revenue
07/11/2018,LGU4DTPR,962.82,0.00,Npower Ltd,MYTHOLMROYD,25000,Energy-Electric,Revenue
07/11/2018,LGU4FJWZ,667.29,0.00,Npower Ltd,MYTHOLMROYD,25000,Energy-Electric,Revenue
07/11/2018,LGU4DTPS,1804.68,0.00,Npower Ltd,MYTHOLMROYD,25000,Energy-Electric,Revenue
07/11/2018,33326,943.24,0.00,R.D.Barrett,SUPPLIES SECTION,28501,Cleaning Consumables,Revenue
07/11/2018,INV-1662,988.00,0.00,Robert Whetham Associates,PROPERTY,42511,Consultancy Fees,Revenue
07/11/2018,19-R1441,191067.00,0.00,Weber Rescue Uk Ltd,CORPORATE MANAGEMENT & SUPPORT,59164,Equipment,Capital
08/11/2018,1415289,2742.00,0.00,Bayford Oil,LEEDS,30200,Vehicle Fuel,Revenue
08/11/2018,1509497-01,540.51,0.00,Crossroads Truck & Bus Ltd,FLEET MAINTENANCE,30001,Dir Cost-Spare Parts,Revenue
08/11/2018,813017486,16062.86,0.00,Easynet Enterprise Services Ltd,Information Technlgy,43018,Wan Rental,Revenue
08/11/2018,6234,608.23,0.00,Harry G Rhodes & Sons Ltd,FLEET MANAGEMENT,30004,Rep-Ext Contractors,Revenue
08/11/2018,1140419069,911.77,0.00,Konica Minolta,NEW CONTROL PROJECT,42201,Photocopier Charges,Revenue
08/11/2018,LGU52P7B,803.10,0.00,Npower Ltd,Shipley,25000,Energy-Electric,Revenue
08/11/2018,LGU52P69,742.90,0.00,Npower Ltd,Shipley,25000,Energy-Electric,Revenue
08/11/2018,10111,1866.00,0.00,Rosenbauer UK PLC,SUPPLIES SECTION,41500,Clothing,Revenue
09/11/2018,758632285,665.83,0.00,Amazon UK Services Ltd,Information Technlgy,43022,ICT Spares & Repairs,Revenue
09/11/2018,AF 1347,1792.90,0.00,Band Of Wy Fire & Rescue Servi,VARIOUS,43500,Subsistence Allowncs,Revenue
09/11/2018,026508,678.07,0.00,BCS Electrics Ltd,WETHERBY,20000,Ann Contract/Service,Revenue
09/11/2018,22044,4428.28,0.00,Emergency One (Uk) Ltd,FLEET MAINTENANCE,30001,Dir Cost-Spare Parts,Revenue
09/11/2018,XMIN175023,631.26,40.04,Lex Autolease,FLEET MANAGEMENT,34001,Vehicle Leasing,Revenue
09/11/2018,0408290/VAN,1608.00,0.00,Pelican Engineering Co (Sales),FLEET MAINTENANCE,30001,Dir Cost-Spare Parts,Revenue
09/11/2018,166530,6078.41,0.00,PMD Technologies Ltd,VARIOUS,21014,General Rep & Maint,Revenue
09/11/2018,166531,6468.41,0.00,PMD Technologies Ltd,VARIOUS,21014,General Rep & Maint,Revenue
09/11/2018,46984,3696.00,0.00,The Safety Letterbox Co Ltd,Fire Safety Prev,45108,Fire Prevn Pblcty,Revenue
09/11/2018,52404558,660.00,0.00,Volvo Group Uk Ltd,Information Technlgy,43103,ICT Maintenance & Support,Revenue
12/11/2018,813902,5940.00,0.00,Fire Service College Limited,TRAINING DELIVERY,19241,Service Supp Tng,Revenue
12/11/2018,0000016086,1832.84,0.00,Mitton Aftercare Ltd,TODMORDEN,21012,Heating & Mechanical,Revenue
12/11/2018,LGU9GBB2,1112.72,0.00,Npower Ltd,WETHERBY,25000,Energy-Electric,Revenue
12/11/2018,LGU9GBB3,3050.17,0.00,Npower Ltd,HUDDERSFIELD,25000,Energy-Electric,Revenue
12/11/2018,LGU9GBB4,2124.05,0.00,Npower Ltd,HUNSLET,25000,Energy-Electric,Revenue
12/11/2018,LGU9GBB5,3860.99,0.00,Npower Ltd,STANNINGLEY,25000,Energy-Electric,Revenue
12/11/2018,LGU9GBBX,1712.95,0.00,Npower Ltd,FAIRWEATHER GREEN,25000,Energy-Electric,Revenue
12/11/2018,LGU9GBBY,736.18,0.00,Npower Ltd,MORLEY,25000,Energy-Electric,Revenue
12/11/2018,LGU9GBBZ,1264.57,0.00,Npower Ltd,Slaithwaite,25000,Energy-Electric,Revenue
12/11/2018,8002,500.00,0.00,Performance Monitoring Sys Ltd,TRAINING DELIVERY,19239,Ops Supp Tng,Revenue
12/11/2018,PP07374421V1MDQ,5102.00,0.00,Wakefield Metropolitan District Cou,CORPORATE MANAGEMENT & SUPPORT,59059,Fee-Pln/Bldg Reg,Capital
13/11/2018,10662,4074.00,0.00,Impeller Assurance & Resilience Ltd,TRAINING DELIVERY,19241,Service Supp Tng,Revenue
13/11/2018,19-R1449,44693.00,0.00,Weber Rescue Uk Ltd,CORPORATE MANAGEMENT & SUPPORT,59164,Equipment,Capital
13/11/2018,655491230000006,1075.29,0.00,Yorkshire Water,CORPORATE MANAGEMENT & SUPPORT,59165,Vehicles & Plant,Capital
14/11/2018,478380G,2096.40,0.00,Arena Group Limited,CORPORATE SERVICES,42201,Photocopier Charges,Revenue
14/11/2018,026509,1642.84,0.00,BCS Electrics Ltd,CASTLEFORD,20000,Ann Contract/Service,Revenue
14/11/2018,3310,1535.40,0.00,Beechwood Equipment Ltd,CORPORATE MANAGEMENT & SUPPORT,59164,Equipment,Capital
14/11/2018,C/07/088713,507.31,0.00,Bradford Met District Council,BRADFORD,28502,Contract Cleaning,Revenue
14/11/2018,C/07/088709,1014.69,0.00,Bradford Met District Council,BRADFORD,28502,Contract Cleaning,Revenue
14/11/2018,C/07/088753,3602.15,0.00,Bradford Met District Council,VARIOUS,28502,Contract Cleaning,Revenue
14/11/2018,5606,926.00,0.00,Brooks Ecological Ltd,CORPORATE MANAGEMENT & SUPPORT,59058,Fee-External,Capital
14/11/2018,7211241,748.70,0.00,Chubb Fire Ltd,OPERATIONS EQUIPMENT,40005,Operational Equ Pch,Revenue
14/11/2018,SI145304,2097.32,0.00,Dale Power Solutions Ltd,HUDDERSFIELD,21013,Electrical Reps (Fr),Revenue
14/11/2018,2910142098,500.00,0.00,Draeger Ltd,OPERATIONS EQUIPMENT,40005,Operational Equ Pch,Revenue
14/11/2018,0159019,967.86,0.00,Haagen Fire Training Products,TRAINING DELIVERY,40006 ,Training Equ Purch,Revenue
14/11/2018,43278,900.00,0.00,Leeds Pallet Co.Ltd.,TRAINING DELIVERY,40006,Training Equ Purch,Revenue
14/11/2018,78433,628.12,0.00,Lsi Limited,SUPPLIES SECTION,41500,Clothing,Revenue
14/11/2018,SWSC053,600.00,0.00,Scammonden Water Sailing Club,TRAINING DELIVERY,19241,Service Supp Tng,Revenue
14/11/2018,655499380000005,958.29,0.00,Yorkshire Water,CORPORATE MANAGEMENT & SUPPORT,59164,Equipment,Capital
14/11/2018,655499490000000,684.21,0.00,Yorkshire Water,CORPORATE MANAGEMENT & SUPPORT,59164,Equipment,Capital
14/11/2018,655499420000003,1427.11,0.00,Yorkshire Water,CORPORATE MANAGEMENT & SUPPORT,59164,Equipment,Capital
15/11/2018,B-18335CR,-2450.00,0.00,Acorn Analytical Services Ltd,Cleckheaton,20001,Water Management Legionella,Revenue
15/11/2018,B-16931,675.00,0.00,Acorn Analytical Services Ltd,CORPORATE MANAGEMENT & SUPPORT,59052,Cont-External,Capital
15/11/2018,B-18335,2450.00,0.00,Acorn Analytical Services Ltd,Cleckheaton,20001,Water Management Legionella,Revenue
15/11/2018,ARCV206651,516.00,0.00,Alliance Automotive UK CV Ltd T/a,FLEET MAINTENANCE,30001,Dir Cost-Spare Parts,Revenue
15/11/2018,43632,1495.00,0.00,Ask,SUPPLIES SECTION,41900,Laundry,Revenue
15/11/2018,1435880,3261.60,0.00,Bayford Oil,BRADFORD,30200,Vehicle Fuel,Revenue
15/11/2018,1434756,3290.40,0.00,Bayford Oil,Cleckheaton,30200,Vehicle Fuel,Revenue
15/11/2018,1447088,3244.20,0.00,Bayford Oil,PONTEFRACT,30200,Vehicle Fuel,Revenue
15/11/2018,026518,523.25,0.00,BCS Electrics Ltd,FAIRWEATHER GREEN,21013,Electrical Reps (Fr),Revenue
15/11/2018,026530,1495.02,0.00,BCS Electrics Ltd,VARIOUS,20000,Ann Contract/Service,Revenue
15/11/2018,C/07/088707,507.31,0.00,Bradford Met District Council,ODSAL,28502,Contract Cleaning,Revenue
15/11/2018,C/07/088705,507.31,0.00,Bradford Met District Council,Shipley New,28502,Contract Cleaning,Revenue
15/11/2018,C/07/088704,570.77,0.00,Bradford Met District Council,KEIGHLEY,28502,Contract Cleaning,Revenue
15/11/2018,C/07/088708,913.23,0.00,Bradford Met District Council,FAIRWEATHER GREEN,28502,Contract Cleaning,Revenue
15/11/2018,47600,516.00,0.00,Concept Engineerings Ltd,OPERATIONS EQUIPMENT,40005,Operational Equ Pch,Revenue
15/11/2018,68701,4640.10,0.00,Electrical Testers Ltd,OPERATIONS EQUIPMENT,40005,Operational Equ Pch,Revenue
15/11/2018,INV/5267,1936.00,0.00,Electromec Access,LEEDS,21014,General Rep & Maint,Revenue
15/11/2018,177161,1060.00,0.00,Ferno UK Ltd,OPERATIONS EQUIPMENT,40005,Operational Equ Pch,Revenue
15/11/2018,5678,18845.24,0.00,Fire Hosetech,OPERATIONS EQUIPMENT,40005,Operational Equ Pch,Revenue
15/11/2018,813935,3875.00,0.00,Fire Service College Limited,TRAINING DELIVERY,19241,Service Supp Tng,Revenue
15/11/2018,6014,866.00,0.00,Geckops Ltd t/a Gecko Property Solu,Rastrick,21014,General Rep & Maint,Revenue
15/11/2018,INV/4104,1738.90,0.00,Industrial Door Solutions Limited,MYTHOLMROYD,21006,Appliance Bay Doors,Revenue
15/11/2018,4109460,4200.00,0.00,Insight Direct (UK) Ltd,Information Technlgy,43103,ICT Maintenance & Support,Revenue
15/11/2018,EXI1198501,858.24,0.00,Lex Autolease,WATER OFFICE,34001,Vehicle Leasing,Revenue
15/11/2018,TNIN070865,669.51,0.00,Lex Autolease,EMPLOYMENT SERVICES,34001,Vehicle Leasing,Revenue
15/11/2018,MRI7756780,9020.52,0.00,Lex Autolease,Leeds Dist Com,34001,Vehicle Leasing,Revenue
15/11/2018,MRI7745594,6407.40,548.82,Lex Autolease,Bfd Dist Com,34001,Vehicle Leasing,Revenue
15/11/2018,138158,1885.00,0.00,Physio Med Ltd,Health & Safety,18301,Specialists Fees,Revenue
15/11/2018,174849,730.32,0.00,Siroflex Ltd,OPERATIONS EQUIPMENT,40005,Operational Equ Pch,Revenue
15/11/2018,845,1080.00,0.00,SJ Facilities,STANNINGLEY,21014,General Rep & Maint,Revenue
15/11/2018,23563,5650.00,0.00,Thornley & Lumb Partnership Ltd,PROPERTY,42511,Consultancy Fees,Revenue
15/11/2018,1845,762.71,0.00,Trafficlear Ltd,FLEET MANAGEMENT,34002,Vhcle Leas Misc Exp,Revenue
15/11/2018,1924,605.21,0.00,Trafficlear Ltd,FLEET MANAGEMENT,34002,Vhcle Leas Misc Exp,Revenue
15/11/2018,9105903400180928,10630.04,0.00,Yorkshire Water,VARIOUS,26500,Water - Metered,Revenue
16/11/2018,A9980139727,4364.89,0.00,Ats Euromaster Ltd,FLEET MANAGEMENT,30000,Tyre Purchase,Revenue
16/11/2018,026532,1495.02,0.00,BCS Electrics Ltd,VARIOUS,20000,Ann Contract/Service,Revenue
16/11/2018,026531,1495.02,0.00,BCS Electrics Ltd,VARIOUS,20000,Ann Contract/Service,Revenue
16/11/2018,2041081-01,650.60,0.00,Crossroads Truck & Bus Ltd,FLEET MANAGEMENT,30004,Rep-Ext Contractors,Revenue
16/11/2018,5026021,11279.84,0.00,GVA Grimley,PROPERTY,42511,Consultancy Fees,Revenue
16/11/2018,978 1 18 0005546,1376.25,0.00,Linde Material Handling,FLEET MAINTENANCE,34101,Operating Leases,Revenue
16/11/2018,0000022671,636.37,0.00,Mitton Aftercare Ltd,ILLINGWORTH,21014,General Rep & Maint,Revenue
16/11/2018,0000019928,527.09,0.00,Mitton Aftercare Ltd,HUDDERSFIELD,21012,Heating & Mechanical,Revenue
16/11/2018,0000023211,509.76,0.00,Mitton Aftercare Ltd,USAR,21012,Heating & Mechanical,Revenue
16/11/2018,0000023187,781.81,0.00,Mitton Aftercare Ltd,ODSAL,21012,Heating & Mechanical,Revenue
16/11/2018,0000023166,982.08,0.00,Mitton Aftercare Ltd,BRADFORD,21012,Heating & Mechanical,Revenue
16/11/2018,INV-1661,3605.66,0.00,Robert Whetham Associates,PROPERTY,42511,Consultancy Fees,Revenue
16/11/2018,19-R1463,9420.00,0.00,Weber Rescue Uk Ltd,CORPORATE MANAGEMENT & SUPPORT,59164,Equipment,Capital
16/11/2018,655492490000006,1015.29,0.00,Yorkshire Water,CORPORATE MANAGEMENT & SUPPORT,59164,Equipment,Capital
16/11/2018,655492480000008,1868.23,0.00,Yorkshire Water,CORPORATE MANAGEMENT & SUPPORT,59164,Equipment,Capital
16/11/2018,655492450000003,1427.11,0.00,Yorkshire Water,CORPORATE MANAGEMENT & SUPPORT,59164,Equipment,Capital
16/11/2018,655499480000002,619.21,0.00,Yorkshire Water,CORPORATE MANAGEMENT & SUPPORT,59164,Equipment,Capital
16/11/2018,655499470000004,619.21,0.00,Yorkshire Water,CORPORATE MANAGEMENT & SUPPORT,59164,Equipment,Capital
16/11/2018,655499460000006,619.21,0.00,Yorkshire Water,CORPORATE MANAGEMENT & SUPPORT,59164,Equipment,Capital
16/11/2018,655499450000008,868.83,0.00,Yorkshire Water,CORPORATE MANAGEMENT & SUPPORT,59164,Equipment,Capital
16/11/2018,655499430000001,1427.11,0.00,Yorkshire Water,CORPORATE MANAGEMENT & SUPPORT,59164,Equipment,Capital
16/11/2018,655499390000003,1427.11,0.00,Yorkshire Water,CORPORATE MANAGEMENT & SUPPORT,59164,Equipment,Capital
16/11/2018,655499400000007,1427.11,0.00,Yorkshire Water,CORPORATE MANAGEMENT & SUPPORT,59164,Equipment,Capital
16/11/2018,655499410000005,1427.11,0.00,Yorkshire Water,CORPORATE MANAGEMENT & SUPPORT,59164,Equipment,Capital
19/11/2018,B-17233CR,-4320.00,0.00,Acorn Analytical Services Ltd,PROPERTY,21007,Asbestos/Hazard Mats,Revenue
19/11/2018,B-17233,4320.00,0.00,Acorn Analytical Services Ltd,PROPERTY,21007,Asbestos/Hazard Mats,Revenue
19/11/2018,AFSANC2018 -36,1140.00,0.00,AFSA,CORPORATE DIVERSITY,43501,Conference Expenses,Revenue
19/11/2018,8604313603,1171.10,0.00,Kirklees Council,PROPERTY,28506,Refuse Collect/Disp,Revenue
19/11/2018,8604313577,1045.15,0.00,Kirklees Council,PROPERTY,28506,Refuse Collect/Disp,Revenue
19/11/2018,4349,1145.00,0.00,The Outreach Organisation Ltd,TRAINING DELIVERY,19241,Service Supp Tng,Revenue
19/11/2018,TFM641/01,1625.00,0.00,Thomson FM Ltd,PROPERTY,42511,Consultancy Fees,Revenue
19/11/2018,92615A,3300.64,0.00,Townley Network Solutions Ltd,VARIOUS,43015,Landlines Call Charges,Revenue
20/11/2018,E2010406462,2900.38,0.00,Allstar Business Solutions Ltd,VARIOUS,30200,Vehicle Fuel,Revenue
20/11/2018,40865,871.72,0.00,Ask,SUPPLIES SECTION,42100,Stationery,Revenue
20/11/2018,"11,435",755.82,0.00,Bella Refreshments Ltd,SUPPLIES SECTION,40514,Emergency Food,Revenue
20/11/2018,90049886,500.00,0.00,College Of Policing,TRAINING DELIVERY,19239,Ops Supp Tng,Revenue
20/11/2018,1510314-01,522.30,0.00,Crossroads Truck & Bus Ltd,FLEET MANAGEMENT,30001,Dir Cost-Spare Parts,Revenue
20/11/2018,4712607,3737.97,0.00,Exchange Data Services Ltd,Information Technlgy,43103,ICT Maintenance & Support,Revenue
20/11/2018,6045,835.50,0.00,Geckops Ltd t/a Gecko Property Solu,PROPERTY,21014,General Rep & Maint,Revenue
20/11/2018,I-012048,4315.00,0.00,Humberside Fire & Rescue Servi,USAR,40012,CBRN,Revenue
20/11/2018,4786,2109.00,0.00,Kjc Technik,FLEET MAINTENANCE,30005,Workshop Equipment,Revenue
20/11/2018,SIN030777,3600.00,0.00,Peak District National Park Authori,TRAINING DELIVERY,19238,Ops Res Tng,Revenue
20/11/2018,21674,920.00,0.00,Pennine Pneumatic Services Ltd,FLEET MAINTENANCE,30004,Rep-Ext Contractors,Revenue
20/11/2018,106657,2647.64,0.00,Redfern Travel Ltd,FINANCE SECTION,35000,Franchises,Revenue
20/11/2018,10148,3143.00,0.00,Rosenbauer UK PLC,OPERATIONS EQUIPMENT,40005,Operational Equ Pch,Revenue
20/11/2018,10149,1884.00,0.00,Rosenbauer UK PLC,OPERATIONS EQUIPMENT,40005,Operational Equ Pch,Revenue
20/11/2018,IE234868,3100.00,0.00,Solarwinds Software Europe Limited,CORPORATE MANAGEMENT & SUPPORT,59166,Computer Costs,Capital
20/11/2018,335849,1397.50,0.00,Systems Assurance Ltd,Information Technlgy,43106,ICT Consumables,Revenue
20/11/2018,10072,1238.00,0.00,T Kirk Forestry,National Resilience Distributed Learning,45119,USAR Chainsaw Recert,Revenue
20/11/2018,4305,1145.00,0.00,The Outreach Organisation Ltd,TRAINING DELIVERY,19241,Service Supp Tng,Revenue
20/11/2018,4310,1145.00,0.00,The Outreach Organisation Ltd,TRAINING DELIVERY,19241,Service Supp Tng,Revenue
20/11/2018,9036,981.20,0.00,Wharfedale Construction Co Ltd,Killingbeck,21014,General Rep & Maint,Revenue
20/11/2018,9034,732.00,0.00,Wharfedale Construction Co Ltd,MORLEY,21014,General Rep & Maint,Revenue
20/11/2018,9033,1031.80,0.00,Wharfedale Construction Co Ltd,KEIGHLEY,21014,General Rep & Maint,Revenue
20/11/2018,89410,979.51,0.00,Wm Sugden & Sons Ltd,SUPPLIES SECTION,41500,Clothing,Revenue
20/11/2018,9105903400180605,13617.17,0.00,Yorkshire Water,PROPERTY,26500,Water - Metered,Revenue
20/11/2018,655492510000008,1491.11,0.00,Yorkshire Water,CORPORATE MANAGEMENT & SUPPORT,59164,Equipment,Capital
20/11/2018,655492520000006,979.83,0.00,Yorkshire Water,CORPORATE MANAGEMENT & SUPPORT,59164,Equipment,Capital
20/11/2018,655492530000004,589.09,0.00,Yorkshire Water,CORPORATE MANAGEMENT & SUPPORT,59164,Equipment,Capital
20/11/2018,65549250000000X,1427.11,0.00,Yorkshire Water,CORPORATE MANAGEMENT & SUPPORT,59164,Equipment,Capital
20/11/2018,65549247000000X,619.21,0.00,Yorkshire Water,CORPORATE MANAGEMENT & SUPPORT,59164,Equipment,Capital
20/11/2018,655492460000001,958.29,0.00,Yorkshire Water,CORPORATE MANAGEMENT & SUPPORT,59164,Equipment,Capital
20/11/2018,655492440000005,1427.11,0.00,Yorkshire Water,CORPORATE MANAGEMENT & SUPPORT,59164,Equipment,Capital
21/11/2018,41330,1661.46,0.00,Abaris International Limited,CORPORATE MANAGEMENT & SUPPORT,59164,Equipment,Capital
21/11/2018,28701,21582.76,0.00,Aegis Engineering Limited,CORPORATE MANAGEMENT & SUPPORT,59164,Equipment,Capital
21/11/2018,2383,1795.00,0.00,Aire Valley Tree Services Ltd,MIRFIELD,24000,Grounds Maintenance,Revenue
21/11/2018,13580,916.00,0.00,Ashwell Engineering Services,TRAINING DELIVERY,21012,Heating & Mechanical,Revenue
21/11/2018,SN2950923,512.23,0.00,Berendsen UK Ltd,VARIOUS,41900,Laundry,Revenue
21/11/2018,BC-10-18-S2068,24897.02,0.00,Bristol Care,SUPPLIES SECTION,41900,Laundry,Revenue
21/11/2018,3158751,3778.80,0.00,Bristol Uniforms Ltd,SUPPLIES SECTION,41500,Clothing,Revenue
21/11/2018,CSL17667,1200.00,0.00,Chief Fire Officers Assoc,Health & Safety,43501,Conference Expenses,Revenue
21/11/2018,8515,2500.00,0.00,DPP One Limited,CORPORATE MANAGEMENT & SUPPORT,59058,Fee-External,Capital
21/11/2018,4712609,1298.00,0.00,Exchange Data Services Ltd,Information Technlgy,43106,ICT Consumables,Revenue
21/11/2018,0000007615,574.80,0.00,Jafco Tools Ltd,OPERATIONS EQUIPMENT,40005,Operational Equ Pch,Revenue
21/11/2018,INV-202159,1008.20,0.00,Laughology Ltd,CORPORATE DIVERSITY,42511,Consultancy Fees,Revenue
21/11/2018,0000242737,1886.50,0.00,M I Supplies Ltd,SUPPLIES SECTION,41500,Clothing,Revenue
21/11/2018,0000242736,1794.00,0.00,M I Supplies Ltd,SUPPLIES SECTION,41500,Clothing,Revenue
21/11/2018,MJA01261,551.65,0.00,Mja Consultants,PONTEFRACT,21013,Electrical Reps (Fr),Revenue
21/11/2018,10163,8858.00,0.00,Rosenbauer UK PLC,CORPORATE MANAGEMENT & SUPPORT,59165,Vehicles & Plant,Capital
21/11/2018,48141,1727.95,0.00,Safequip Ltd,OPERATIONS EQUIPMENT,40005,Operational Equ Pch,Revenue
21/11/2018,145815,764.25,0.00,Southcombe Brothers Ltd,SUPPLIES SECTION,41500,Clothing,Revenue
21/11/2018,145809,1987.05,0.00,Southcombe Brothers Ltd,SUPPLIES SECTION,41500,Clothing,Revenue
21/11/2018,9955,945.00,0.00,T Kirk Forestry,USAR,40017,USAR,Revenue
21/11/2018,10113,1238.00,0.00,T Kirk Forestry,National Resilience Distributed Learning,45119,USAR Chainsaw Recert,Revenue
21/11/2018,511533,1973.49,0.00,Tees Active Limited,TRAINING DELIVERY,19241,Service Supp Tng,Revenue
21/11/2018,96525,2501.12,0.00,Vision Techniques (Uk) Ltd,CORPORATE MANAGEMENT & SUPPORT,59165,Vehicles & Plant,Capital
21/11/2018,89415988,6150.00,0.00,Vodafone (Mobiles),Information Technlgy,43017,Corporate Mobile Phone,Revenue
21/11/2018,52404946,660.00,0.00,Volvo Group Uk Ltd,Information Technlgy,43103,ICT Maintenance & Support,Revenue
22/11/2018,43983,1072.00,0.00,Ask,SUPPLIES SECTION,42100,Stationery,Revenue
22/11/2018,3049690722,1921.78,0.00,British Oxygen Co Ltd,VARIOUS,40005,Operational Equ Pch,Revenue
22/11/2018,1510970-01,834.66,0.00,Crossroads Truck & Bus Ltd,FLEET MAINTENANCE,30001,Dir Cost-Spare Parts,Revenue
22/11/2018,1510963-01,1367.71,0.00,Crossroads Truck & Bus Ltd,FLEET MAINTENANCE,30001,Dir Cost-Spare Parts,Revenue
22/11/2018,1510988-01,1037.70,0.00,Crossroads Truck & Bus Ltd,FLEET MAINTENANCE,30001,Dir Cost-Spare Parts,Revenue
22/11/2018,1123170,31500.00,0.00,Fireangel Safety Technology Ltd,CORPORATE MANAGEMENT & SUPPORT,59164,Equipment,Capital
22/11/2018,1531,4300.00,0.00,Hall Lane Recyclers Ltd,TRAINING DELIVERY,40025,Scrap Cars Purch,Revenue
22/11/2018,232376,531.85,0.00,J R Industries Ltd,FLEET MAINTENANCE,30001,Dir Cost-Spare Parts,Revenue
22/11/2018,4872530,612.00,0.00,Johnston Publishing Ltd,EMPLOYMENT SERVICES,18100,Staff Advertising,Revenue
22/11/2018,RACR284280,-3570.69,-331.20,Lex Autolease,EMPLOYMENT SERVICES,34001,Vehicle Leasing,Revenue
22/11/2018,RACR286231,-649.92,-42.98,Lex Autolease,Bfd Dist Com,34001,Vehicle Leasing,Revenue
22/11/2018,MLIN081854,999.36,72.75,Lex Autolease,Bfd Dist Com,34001,Vehicle Leasing,Revenue
22/11/2018,MLIN081857,1772.34,126.37,Lex Autolease,OPERATIONS TEAM,34001,Vehicle Leasing,Revenue
22/11/2018,MLIN081870,667.62,48.15,Lex Autolease,OPERATIONS TEAM,34001,Vehicle Leasing,Revenue
22/11/2018,MRI7687274,3831.60,0.00,Lex Autolease,TRAINING DELIVERY,34001,Vehicle Leasing,Revenue
22/11/2018,I0021286,7564.00,0.00,Merseyside Fire & Rescue Authority,USAR,40017,USAR,Revenue
22/11/2018,7561107,7000.00,0.00,Ministry Of Defence,SUPPLIES SECTION,40011,Recycling,Revenue
22/11/2018,155638,570.00,0.00,Nb Data Ltd,CONTROL,43106,ICT Consumables,Revenue
22/11/2018,413174,-1432.00,0.00,Open University,TRAINING DELIVERY,19241,Service Supp Tng,Revenue
22/11/2018,415420,2212.00,0.00,Open University,TRAINING DELIVERY,19241,Service Supp Tng,Revenue
22/11/2018,861,1280.00,0.00,SJ Facilities,CORPORATE MANAGEMENT & SUPPORT,59052,Cont-External,Capital
22/11/2018,12005,761.50,0.00,Slideandtilt.Com Ltd,FLEET MAINTENANCE,30001,Dir Cost-Spare Parts,Revenue
22/11/2018,33252,1061.30,0.00,Talking Headsets Ltd,TRAINING DELIVERY,40006,Training Equ Purch,Revenue
22/11/2018,15002424853,800.00,0.00,West UC Ltd,Information Technlgy,43103,ICT Maintenance & Support,Revenue
23/11/2018,1720,930.00,0.00,Advanced Monitoring Limited,PROPERTY,20000,Ann Contract/Service,Revenue
23/11/2018,R13447,3150.00,0.00,Airmax Remote,Information Technlgy,43103,ICT Maintenance & Support,Revenue
23/11/2018,170092,503.00,0.00,B M Services,FLEET MANAGEMENT,30004,Rep-Ext Contractors,Revenue
23/11/2018,026620,1101.34,0.00,BCS Electrics Ltd,PONTEFRACT,21013,Electrical Reps (Fr),Revenue
23/11/2018,972512,800.00,0.00,Gritit Ltd,PROPERTY,24000,Grounds Maintenance,Revenue
23/11/2018,6291244769,7703.14,0.00,Leeds City Council,VARIOUS,28502,Contract Cleaning,Revenue
26/11/2018,10470,20395.44,0.00,Conlon Construction Ltd,CORPORATE MANAGEMENT & SUPPORT,59052,Cont-External,Capital
26/11/2018,14379,950.00,0.00,Lk Consult Limited,CORPORATE MANAGEMENT & SUPPORT,59058,Fee-External,Capital
26/11/2018,YO-IN02071,608.00,0.00,Nbc Bird & Pest Solutions Ltd,PROPERTY,20000,Ann Contract/Service,Revenue
26/11/2018,0000004468,3810.21,0.00,Nviron Limited,CORPORATE MANAGEMENT & SUPPORT,59166,Computer Costs,Capital
27/11/2018,479689,11670.81,0.00,Arena Group Limited,CORPORATE MANAGEMENT & SUPPORT,59163,Furniture & Fittings,Capital
27/11/2018,I0021285,1600.00,0.00,Merseyside Fire & Rescue Authority,USAR,40017,USAR,Revenue
27/11/2018,44,681.84,0.00,The Hideaway Cafe Bar,TRAINING DELIVERY,40502,Food,Revenue
27/11/2018,TK124554,7432.70,0.00,Thomas Kneale & Co Ltd,Fire Safety Prev,45108,Fire Prevn Pblcty,Revenue
28/11/2018,0000244605,1161.60,0.00,M I Supplies Ltd,SUPPLIES SECTION,28501,Cleaning Consumables,Revenue
28/11/2018,0000244606,1167.60,0.00,M I Supplies Ltd,SUPPLIES SECTION,28501,Cleaning Consumables,Revenue
28/11/2018,10285198,600.00,0.00,UBM Uk Ltd (Building4jobs),EMPLOYMENT SERVICES,18100,Staff Advertising,Revenue
28/11/2018,96769,1460.00,0.00,Vision Techniques (Uk) Ltd,OPERATIONS EQUIPMENT,40005,Operational Equ Pch,Revenue
29/11/2018,ARCV236160,808.00,0.00,Alliance Automotive UK CV Ltd T/a,FLEET MAINTENANCE,30001,Dir Cost-Spare Parts,Revenue
29/11/2018,ARCV236612,910.00,0.00,Alliance Automotive UK CV Ltd T/a,FLEET MAINTENANCE,30001,Dir Cost-Spare Parts,Revenue
29/11/2018,1416479,3290.40,0.00,Bayford Oil,South Kirkby,30200,Vehicle Fuel,Revenue
29/11/2018,1511061,3273.41,0.00,Bayford Oil,HUDDERSFIELD,30200,Vehicle Fuel,Revenue
29/11/2018,186128 / 213127,1170.00,0.00,Co-Star Electronic Co Ltd,FLEET MANAGEMENT,43027,Mob Phone Installtn,Revenue
29/11/2018,W424438,1385.82,0.00,Cyclescheme Ltd,CORPORATE MANAGEMENT & SUPPORT,59164,Equipment,Capital
29/11/2018,2910145383,500.00,0.00,Draeger Ltd,OPERATIONS EQUIPMENT,40005,Operational Equ Pch,Revenue
29/11/2018,5713,5483.98,0.00,Fire Hosetech,OPERATIONS EQUIPMENT,40005,Operational Equ Pch,Revenue
29/11/2018,814332,2795.00,0.00,Fire Service College Limited,TRAINING DELIVERY,19239,Ops Supp Tng,Revenue
29/11/2018,814313,1634.00,0.00,Fire Service College Limited,TRAINING DELIVERY,19241,Service Supp Tng,Revenue
29/11/2018,1073,1575.00,0.00,K M D'Arcy Brown T/a Oriel Consulti,Health & Safety,18301,Specialists Fees,Revenue
29/11/2018,INV-0872,1804.00,0.00,Legal Experience Training Ltd,TRAINING DELIVERY,19240,Prot/Prev Tng,Revenue
29/11/2018,0001,875.00,0.00,Primal Kitchen Ltd,RECRUITS,40502,Food,Revenue
29/11/2018,0002,625.00,0.00,Primal Kitchen Ltd,RECRUITS,40502,Food,Revenue
29/11/2018,0003,625.00,0.00,Primal Kitchen Ltd,RECRUITS,40502,Food,Revenue
29/11/2018,INV223558,919.50,0.00,Refreshment Systems Ltd,TRAINING DELIVERY,40502,Food,Revenue
29/11/2018,69987,1866.20,0.00,Saville Assessment Ltd,EMPLOYMENT SERVICES,42539,Professional Service,Revenue
29/11/2018,0000012562,12293.10,0.00,South Yorks Fire & Rescue,ESMCP,15001,Admin - Basic Pay,Revenue
29/11/2018,0000012638,12438.96,0.00,South Yorks Fire & Rescue,ESMCP,15001,Admin - Basic Pay,Revenue
29/11/2018,CD20181032625,532.46,0.00,Survitec Service & Distribution Ltd,OPERATIONS EQUIPMENT,40005,Operational Equ Pch,Revenue
29/11/2018,89574,675.00,0.00,Wm Sugden & Sons Ltd,SUPPLIES SECTION,41500,Clothing,Revenue
03/12/2018,9277,2780.00,0.00,Ioda Limited,TRAINING DELIVERY,19241,Service Supp Tng,Revenue
03/12/2018,OP/I830008,6706.00,0.00,Phoenix Software Ltd,Information Technlgy,43103,ICT Maintenance & Support,Revenue
03/12/2018,1220,1591.89,0.00,Safer Communities CIC,TRAINING DELIVERY,19238,Ops Res Tng,Revenue
03/12/2018,OHU73,1269.00,0.00,Spire Leeds Hospital,Health & Safety,18301,Specialists Fees,Revenue
04/12/2018,4703,990.00,0.00,Allansound Communications,VARIOUS,20000,Ann Contract/Service,Revenue
04/12/2018,E2010480302,4452.39,0.00,Allstar Business Solutions Ltd,VARIOUS,30200,Vehicle Fuel,Revenue
04/12/2018,934305971,21980.48,0.00,Arco Group,CORPORATE MANAGEMENT & SUPPORT,59164,Equipment,Capital
04/12/2018,1500171,2926.41,0.00,Bayford Oil,HUDDERSFIELD,30200,Vehicle Fuel,Revenue
04/12/2018,026631,704.43,0.00,BCS Electrics Ltd,BINGLEY,20000,Ann Contract/Service,Revenue
04/12/2018,026629,1138.95,0.00,BCS Electrics Ltd,Slaithwaite,20000,Ann Contract/Service,Revenue
04/12/2018,985615,12108.53,0.00,Caterpillar Financial Services,TRAINING DELIVERY,34101,Operating Leases,Revenue
04/12/2018,2910145730,11176.62,0.00,Draeger Ltd,VARIOUS,40017,USAR,Revenue
04/12/2018,37308,778.50,0.00,Intellitec Mv,CORPORATE MANAGEMENT & SUPPORT,59052,Cont-External,Capital
04/12/2018,MJA01265,5272.00,0.00,Mja Consultants,CORPORATE MANAGEMENT & SUPPORT,59052,Cont-External,Capital
04/12/2018,A0024208,8262.44,0.00,Pulse Cashflow Finance,VARIOUS,28502,Contract Cleaning,Revenue
04/12/2018,A0024207,871.12,0.00,Pulse Cashflow Finance,PONTEFRACT,28502,Contract Cleaning,Revenue
04/12/2018,A0024205,4284.03,0.00,Pulse Cashflow Finance,Slaithwaite,28502,Contract Cleaning,Revenue
04/12/2018,LM29645,2685.00,0.00,Vodafone (Mobiles),CORPORATE MANAGEMENT & SUPPORT,59166,Computer Costs,Capital
04/12/2018,LM73047,4800.00,0.00,Vodafone (Mobiles),CORPORATE MANAGEMENT & SUPPORT,59166,Computer Costs,Capital
04/12/2018,19-R1482,40230.00,0.00,Weber Rescue Uk Ltd,CORPORATE MANAGEMENT & SUPPORT,59164,Equipment,Capital
05/12/2018,2018-232103844,524.17,0.00,Amazon UK Services Ltd,CORPORATE MANAGEMENT & SUPPORT,59163,Furniture & Fittings,Capital
05/12/2018,1540281,2728.75,0.00,Bayford Oil,LEEDS,30200,Vehicle Fuel,Revenue
05/12/2018,1555085,4288.80,0.00,Bayford Oil,Killingbeck,30200,Vehicle Fuel,Revenue
05/12/2018,6212,1073.88,0.00,Harry G Rhodes & Sons Ltd,FLEET MANAGEMENT,30004,Rep-Ext Contractors,Revenue
05/12/2018,16273,864.45,0.00,Heavy Woollen Textile Co Ltd,SUPPLIES SECTION,40007,Domestic Equ Purch,Revenue
05/12/2018,1144524,57058.53,0.00,Home Office,OPERATIONS,43026,Radio Licensing,Revenue
05/12/2018,A-000285,920.00,0.00,M Assessment Services Ltd,CORPORATE SERVICES,42511,Consultancy Fees,Revenue
05/12/2018,MC/174,1800.00,0.00,Montgomery & Coupers Ltd,PROPERTY,42511,Consultancy Fees,Revenue
05/12/2018,0000029916,750.00,0.00,Nobel Fire Systems Ltd,OPERATIONS EQUIPMENT,40005,Operational Equ Pch,Revenue
05/12/2018,ISL151138,10000.00,0.00,QA Limited,TRAINING DELIVERY,19241,Service Supp Tng,Revenue
05/12/2018,ICE538830,1873.40,0.00,QA Limited,TRAINING DELIVERY,19241,Service Supp Tng,Revenue
05/12/2018,433,1380.00,0.00,Watershed (Roofing) Ltd,PROPERTY,21014,General Rep & Maint,Revenue
05/12/2018,19-R1508,229940.00,0.00,Weber Rescue Uk Ltd,CORPORATE MANAGEMENT & SUPPORT,59164,Equipment,Capital
07/12/2018,B-17238,4320.00,0.00,Acorn Analytical Services Ltd,WETHERBY,21007,Asbestos/Hazard Mats,Revenue
07/12/2018,B-17233-2,7425.00,0.00,Acorn Analytical Services Ltd,WETHERBY,21007,Asbestos/Hazard Mats,Revenue
07/12/2018,0940000048-072D,1250.54,0.00,Airwave Solutions Ltd,Information Technlgy,43026,Radio Licensing,Revenue
07/12/2018,14450,27850.00,0.00,Bradshaw Gass & Hope Llp,CORPORATE MANAGEMENT & SUPPORT,59058,Fee-External,Capital
07/12/2018,11/18,3636.00,0.00,Dr N A L Smith (Medical Services) L,Health & Safety,42510,Client Med Fees/Exps,Revenue
07/12/2018,972513,1465.00,0.00,Gritit Ltd,Shipley New,24000,Grounds Maintenance,Revenue
07/12/2018,972511,1318.73,0.00,Gritit Ltd,VARIOUS,24000,Grounds Maintenance,Revenue
07/12/2018,2077,1500.00,0.00,Lk Management Ltd,PROPERTY,20001,Water Management Legionella,Revenue
07/12/2018,MJA01272,5302.00,0.00,Mja Consultants,CORPORATE MANAGEMENT & SUPPORT,59052,Cont-External,Capital
07/12/2018,166882,1390.00,0.00,PMD Technologies Ltd,BRADFORD,21014,General Rep & Maint,Revenue
07/12/2018,18040,1800.00,0.00,Reactec Limited,FLEET MAINTENANCE,30005,Workshop Equipment,Revenue
07/12/2018,17923,7490.66,0.00,Reactec Limited,FLEET MAINTENANCE,30005,Workshop Equipment,Revenue
07/12/2018,9038,4631.00,0.00,Wharfedale Construction Co Ltd,HUDDERSFIELD,21014,General Rep & Maint,Revenue
10/12/2018,ARCV239047,1642.00,0.00,Alliance Automotive UK CV Ltd T/a,FLEET MAINTENANCE,30001,Dir Cost-Spare Parts,Revenue
10/12/2018,934363957,1007.82,0.00,Arco Group,VARIOUS,41500,Clothing,Revenue
10/12/2018,480587G,715.11,0.00,Arena Group Limited,EMPLOYMENT SERVICES,42201,Photocopier Charges,Revenue
10/12/2018,813018022,16062.86,0.00,Easynet Enterprise Services Ltd,VARIOUS,43018,Wan Rental,Revenue
10/12/2018,18004185,872.20,0.00,Godiva Ltd,FLEET MAINTENANCE,30001,Dir Cost-Spare Parts,Revenue
10/12/2018,00021,716.10,0.00,Handy Catering,OPERATIONS TEAM,19239,Ops Supp Tng,Revenue
10/12/2018,RACR286236,-787.62,-65.29,Lex Autolease,OPERATIONS TEAM,34001,Vehicle Leasing,Revenue
10/12/2018,LGU9QSYF,1785.33,0.00,Npower Ltd,PROPERTY,25000,Energy-Electric,Revenue
10/12/2018,INV478,4400.00,0.00,OPS Environmental Services Ltd,KEIGHLEY,20001,Water Management Legionella,Revenue
10/12/2018,CR (INV-478),-4400.00,0.00,OPS Environmental Services Ltd,KEIGHLEY,20001,Water Management Legionella,Revenue
10/12/2018,0004,625.00,0.00,Primal Kitchen Ltd,RECRUITS,40502,Food,Revenue
10/12/2018,4366,1145.00,0.00,The Outreach Organisation Ltd,TRAINING DELIVERY,19241,Service Supp Tng,Revenue
10/12/2018,4372,770.00,0.00,The Outreach Organisation Ltd,TRAINING DELIVERY,19241,Service Supp Tng,Revenue
10/12/2018,CE 109568,840.00,0.00,WCS Environmental Ltd,TRAINING DELIVERY,21014,General Rep & Maint,Revenue
10/12/2018,89906,3696.00,0.00,Wm Sugden & Sons Ltd,SUPPLIES SECTION,41500,Clothing,Revenue
10/12/2018,89905,2457.00,0.00,Wm Sugden & Sons Ltd,SUPPLIES SECTION,41500,Clothing,Revenue
10/12/2018,89907,4080.00,0.00,Wm Sugden & Sons Ltd,SUPPLIES SECTION,41500,Clothing,Revenue
11/12/2018,627020,950.00,0.00,Access Uk Ltd,CORPORATE MANAGEMENT & SUPPORT,59166,Computer Costs,Capital
11/12/2018,628582,950.00,0.00,Access Uk Ltd,CORPORATE MANAGEMENT & SUPPORT,59166,Computer Costs,Capital
11/12/2018,44443,1846.18,0.00,Ask,VARIOUS,42100,Stationery,Revenue
11/12/2018,026673,2310.11,0.00,BCS Electrics Ltd,PROPERTY,21013,Electrical Reps (Fr),Revenue
11/12/2018,026674,1041.65,0.00,BCS Electrics Ltd,NORMANTON,21013,Electrical Reps (Fr),Revenue
11/12/2018,LGU9QSYG,973.98,0.00,Npower Ltd,FEATHERSTONE,25000,Energy-Electric,Revenue
11/12/2018,LGU9QSYH,3046.39,0.00,Npower Ltd,HALIFAX,25000,Energy-Electric,Revenue
11/12/2018,LGU9QSYJ,731.02,0.00,Npower Ltd,Holmfirth,25000,Energy-Electric,Revenue
11/12/2018,LGU9QSYL,2126.71,0.00,Npower Ltd,KEIGHLEY,25000,Energy-Electric,Revenue
11/12/2018,LGU9QSYN,1711.36,0.00,Npower Ltd,MOORTOWN,25000,Energy-Electric,Revenue
11/12/2018,LGU9QSYR,1006.51,0.00,Npower Ltd,Skelmanthorpe,25000,Energy-Electric,Revenue
11/12/2018,LGU9QSYS,1579.72,0.00,Npower Ltd,RAWDON,25000,Energy-Electric,Revenue
11/12/2018,LGU9QSYV,1749.10,0.00,Npower Ltd,CASTLEFORD,25000,Energy-Electric,Revenue
11/12/2018,LGU9QSYW,1871.20,0.00,Npower Ltd,Cleckheaton,25000,Energy-Electric,Revenue
11/12/2018,LGU9QSYX,1032.59,0.00,Npower Ltd,COOKRIDGE,25000,Energy-Electric,Revenue
11/12/2018,LGU9PTSB,8688.13,0.00,Npower Yorkshire Ltd,PROPERTY,25000,Energy-Electric,Revenue
11/12/2018,LGU9PTSC,821.74,0.00,Npower Yorkshire Ltd,Rastrick,25000,Energy-Electric,Revenue
11/12/2018,LGU9PTSD,779.57,0.00,Npower Yorkshire Ltd,Dewsbury New,25000,Energy-Electric,Revenue
11/12/2018,LGU9PTSF,1100.47,0.00,Npower Yorkshire Ltd,Killingbeck,25000,Energy-Electric,Revenue
11/12/2018,LGU9PTSH,5037.03,0.00,Npower Yorkshire Ltd,NEW CONTROL PROJECT,25000,Energy-Electric,Revenue
11/12/2018,LGU9PTSG,626.72,0.00,Npower Yorkshire Ltd,Shipley New,25000,Energy-Electric,Revenue
11/12/2018,LGU9PTSJ,2002.68,0.00,Npower Yorkshire Ltd,BRADFORD,25000,Energy-Electric,Revenue
11/12/2018,LGU9PTSM,692.51,0.00,Npower Yorkshire Ltd,ROTHWELL,25000,Energy-Electric,Revenue
11/12/2018,LGU9PTSN,1198.38,0.00,Npower Yorkshire Ltd,LEEDS,25000,Energy-Electric,Revenue
11/12/2018,LGU9PTSK,763.16,0.00,Npower Yorkshire Ltd,PONTEFRACT,25000,Energy-Electric,Revenue
11/12/2018,LGU9QSYM,718.37,0.00,Npower Yorkshire Ltd,Meltham,25000,Energy-Electric,Revenue
11/12/2018,LGU9QSYP,1231.75,0.00,Npower Yorkshire Ltd,ODSAL,25000,Energy-Electric,Revenue
11/12/2018,169257,2285.00,0.00,PMD Technologies Ltd,TRAINING DELIVERY,21014,General Rep & Maint,Revenue
11/12/2018,884,625.00,0.00,SJ Facilities,Rastrick,21014,General Rep & Maint,Revenue
11/12/2018,862,1130.00,0.00,SJ Facilities,CORPORATE MANAGEMENT & SUPPORT,59052,Cont-External,Capital
12/12/2018,19-R1534,286815.00,0.00,Weber Rescue Uk Ltd,CORPORATE MANAGEMENT & SUPPORT,59164,Equipment,Capital
12/12/2018,19-R1532,18840.00,0.00,Weber Rescue Uk Ltd,CORPORATE MANAGEMENT & SUPPORT,59164,Equipment,Capital
13/12/2018,3159610,4629.03,0.00,Bristol Uniforms Ltd,SUPPLIES SECTION,41500,Clothing,Revenue
13/12/2018,0000143623,1599.85,0.00,Goliath Footwear Ltd,SUPPLIES SECTION,41500,Clothing,Revenue
13/12/2018,0000143624,1950.00,0.00,Goliath Footwear Ltd,SUPPLIES SECTION,41500,Clothing,Revenue
13/12/2018,40220327,8405.17,0.00,Improvement and Development Agency,Corporate Governance,44502,AMA Grant,Revenue
13/12/2018,2451,3512.30,0.00,Jt Services Group,TRAINING DELIVERY,21014,General Rep & Maint,Revenue
13/12/2018,0000246183,690.00,0.00,M I Supplies Ltd,SUPPLIES SECTION,28501,Cleaning Consumables,Revenue
13/12/2018,MJA01281,1713.70,0.00,Mja Consultants,BRADFORD,21014,General Rep & Maint,Revenue
13/12/2018,33945,581.00,0.00,R.D.Barrett,SUPPLIES SECTION,40026,First Aid Equ Pch,Revenue
13/12/2018,4388,1155.00,0.00,The Outreach Organisation Ltd,TRAINING DELIVERY,19241,Service Supp Tng,Revenue
13/12/2018,4389,1155.00,0.00,The Outreach Organisation Ltd,TRAINING DELIVERY,19241,Service Supp Tng,Revenue
13/12/2018,4390,1155.00,0.00,The Outreach Organisation Ltd,TRAINING DELIVERY,19241,Service Supp Tng,Revenue
13/12/2018,9047,14545.56,0.00,Wharfedale Construction Co Ltd,CORPORATE MANAGEMENT & SUPPORT,59052,Cont-External,Capital
14/12/2018,1566631,10722.00,0.00,Bayford Oil,TRAINING DELIVERY,30200,Vehicle Fuel,Revenue
14/12/2018,1562179,4171.93,0.00,Bayford Oil,HUNSLET,30200,Vehicle Fuel,Revenue
14/12/2018,1568532,4289.87,0.00,Bayford Oil,ILLINGWORTH,30200,Vehicle Fuel,Revenue
14/12/2018,1578891,4292.02,0.00,Bayford Oil,STANNINGLEY,30200,Vehicle Fuel,Revenue
14/12/2018,1511499-01,522.30,0.00,Crossroads Truck & Bus Ltd,FLEET MAINTENANCE,30001,Dir Cost-Spare Parts,Revenue
14/12/2018,EXI1199928,2220.48,0.00,Lex Autolease,VARIOUS,34001,Vehicle Leasing,Revenue
14/12/2018,LGU9QSYT,1480.91,0.00,Npower Ltd,BINGLEY,25000,Energy-Electric,Revenue
14/12/2018,A0024240,871.12,0.00,Pulse Cashflow Finance,PONTEFRACT,28502,Contract Cleaning,Revenue
14/12/2018,A0024241,8262.44,0.00,Pulse Cashflow Finance,VARIOUS,28502,Contract Cleaning,Revenue
14/12/2018,A0024238,4284.03,0.00,Pulse Cashflow Finance,VARIOUS,28502,Contract Cleaning,Revenue
14/12/2018,A0024239,5301.19,0.00,Pulse Cashflow Finance,VARIOUS,28502,Contract Cleaning,Revenue
14/12/2018,353144,-1365.00,0.00,Volkswagen Van Centre,FLEET MANAGEMENT,30004,Rep-Ext Contractors,Revenue
14/12/2018,35101632,1273.38,0.00,Volkswagen Van Centre,FLEET MANAGEMENT,30004,Rep-Ext Contractors,Revenue
14/12/2018,35100713,1365.00,0.00,Volkswagen Van Centre,FLEET MANAGEMENT,30001,Dir Cost-Spare Parts,Revenue
14/12/2018,655505820000002,684.21,0.00,Yorkshire Water,CORPORATE MANAGEMENT & SUPPORT,59164,Equipment,Capital
14/12/2018,655505810000004,619.21,0.00,Yorkshire Water,CORPORATE MANAGEMENT & SUPPORT,59164,Equipment,Capital
14/12/2018,655505790000002,1427.11,0.00,Yorkshire Water,CORPORATE MANAGEMENT & SUPPORT,59164,Equipment,Capital
14/12/2018,655505780000004,1427.11,0.00,Yorkshire Water,CORPORATE MANAGEMENT & SUPPORT,59164,Equipment,Capital
14/12/2018,655505770000006,931.64,0.00,Yorkshire Water,CORPORATE MANAGEMENT & SUPPORT,59164,Equipment,Capital
14/12/2018,655505830000000,585.11,0.00,Yorkshire Water,CORPORATE MANAGEMENT & SUPPORT,59164,Equipment,Capital
14/12/2018,655505760000008,958.29,0.00,Yorkshire Water,CORPORATE MANAGEMENT & SUPPORT,59164,Equipment,Capital
17/12/2018,INV-0000001851,910.00,0.00,Event Equipment Hire,TRAINING DELIVERY,40100,Furniture,Revenue
17/12/2018,I54296,4695.00,0.00,Ice Creates Ltd,Portfolio Management Office,42511,Consultancy Fees,Revenue
17/12/2018,EXI1210964,2220.48,0.00,Lex Autolease,Fire Safety Prot,34001,Vehicle Leasing,Revenue
17/12/2018,TSCR465088,728.08,0.00,Lex Autolease,Leeds Dist Com,34002,Vhcle Leas Misc Exp,Revenue
17/12/2018,0702260/WSH/103,674.23,0.00,Pelican Engineering Co (Sales),FLEET MANAGEMENT,30004,Rep-Ext Contractors,Revenue
17/12/2018,138668,2882.00,0.00,Physio Med Ltd,Health & Safety,18301,Specialists Fees,Revenue
18/12/2018,INV-1682,875.00,0.00,Robert Whetham Associates,CORPORATE MANAGEMENT & SUPPORT,59058,Fee-External,Capital
18/12/2018,9045,11924.40,0.00,Wharfedale Construction Co Ltd,CORPORATE MANAGEMENT & SUPPORT,59052,Cont-External,Capital
19/12/2018,44606,802.41,0.00,Ask,VARIOUS,41500,Clothing,Revenue
19/12/2018,44745,514.39,0.00,Ask,VARIOUS,41500,Clothing,Revenue
19/12/2018,1597547,4272.00,0.00,Bayford Oil,Ossett New,30200,Vehicle Fuel,Revenue
19/12/2018,026699,2182.12,0.00,BCS Electrics Ltd,PROPERTY,21013,Electrical Reps (Fr),Revenue
19/12/2018,026734,606.20,0.00,BCS Electrics Ltd,Dewsbury New,21013,Electrical Reps (Fr),Revenue
19/12/2018,3050153676,1964.02,0.00,British Oxygen Co Ltd,OPERATIONS EQUIPMENT,40005,Operational Equ Pch,Revenue
19/12/2018,SI-94,4730.00,0.00,Cafe Perfection,VARIOUS,20000,Ann Contract/Service,Revenue
19/12/2018,SI-114,606.00,0.00,Cafe Perfection,TRAINING DELIVERY,21014,General Rep & Maint,Revenue
19/12/2018,177328,3196.10,0.00,Cmt Flexibles Ltd,CORPORATE MANAGEMENT & SUPPORT,59164,Equipment,Capital
19/12/2018,201812,510.00,0.00,Daniels Caf�,OPERATIONS TEAM,40502,Food,Revenue
19/12/2018,1589,560.00,0.00,Hall Lane Recyclers Ltd,KEIGHLEY,40025,Scrap Cars Purch,Revenue
19/12/2018,3630007390,750.00,0.00,Hampshire Fire & Rescue Service,Fire Safety Prev,45108,Fire Prevn Pblcty,Revenue
19/12/2018,179531,531.22,0.00,Hj Sock Group Ltd,SUPPLIES SECTION,41500,Clothing,Revenue
19/12/2018,INV/4329,1332.40,0.00,Industrial Door Solutions Limited,COOKRIDGE,21006,Appliance Bay Doors,Revenue
19/12/2018,14/2018,6800.00,0.00,JM Hazmat Consultancy Ltd,TRAINING DELIVERY,19239,Ops Supp Tng,Revenue
19/12/2018,97811800077302,1376.25,0.00,Linde Material Handling,FLEET MAINTENANCE,34101,Operating Leases,Revenue
19/12/2018,0000247044,1748.00,0.00,M I Supplies Ltd,SUPPLIES SECTION,41500,Clothing,Revenue
19/12/2018,I0021339,1558.00,0.00,Merseyside Fire & Rescue Authority,TRAINING DELIVERY,19239,Ops Supp Tng,Revenue
19/12/2018,169771,1319.48,0.00,PMD Technologies Ltd,VARIOUS,21014,General Rep & Maint,Revenue
19/12/2018,601004,7518.00,0.00,Premier Hose Technologies Ltd,OPERATIONS EQUIPMENT,40005,Operational Equ Pch,Revenue
19/12/2018,A0024206,5301.19,0.00,Pulse Cashflow Finance,VARIOUS,28502,Contract Cleaning,Revenue
19/12/2018,146090,5093.35,0.00,Southcombe Brothers Ltd,SUPPLIES SECTION,41500,Clothing,Revenue
19/12/2018,1950,605.21,0.00,Trafficlear Ltd,FLEET MANAGEMENT,34002,Vhcle Leas Misc Exp,Revenue
19/12/2018,90107,1249.50,0.00,Wm Sugden & Sons Ltd,SUPPLIES SECTION,41500,Clothing,Revenue
20/12/2018,207,500.00,0.00,(SB) Neuro Point Medicals Limited,Health & Safety,18301,Specialists Fees,Revenue
20/12/2018,A9980140535,4047.87,0.00,Ats Euromaster Ltd,FLEET MANAGEMENT,30000,Tyre Purchase,Revenue
20/12/2018,026751,3135.90,0.00,BCS Electrics Ltd,USAR,40019,HVP,Revenue
20/12/2018,C/08/088828,570.77,0.00,Bradford Met District Council,KEIGHLEY,28502,Contract Cleaning,Revenue
20/12/2018,C/08/088829,507.31,0.00,Bradford Met District Council,Shipley New,28502,Contract Cleaning,Revenue
20/12/2018,C/08/088831,507.31,0.00,Bradford Met District Council,ODSAL,28502,Contract Cleaning,Revenue
20/12/2018,C/08/088832,913.23,0.00,Bradford Met District Council,FAIRWEATHER GREEN,28502,Contract Cleaning,Revenue
20/12/2018,C/08/088876,3602.15,0.00,Bradford Met District Council,VARIOUS,28502,Contract Cleaning,Revenue
20/12/2018,C/08/088833,1014.69,0.00,Bradford Met District Council,BRADFORD,28502,Contract Cleaning,Revenue
20/12/2018,C/08/088837,507.31,0.00,Bradford Met District Council,BRADFORD,28502,Contract Cleaning,Revenue
20/12/2018,BC-09-18-S2052,25176.13,0.00,Bristol Care,SUPPLIES SECTION,41900,Laundry,Revenue
20/12/2018,SIN030054,45794.64,0.00,Chronos Technology Ltd,CORPORATE MANAGEMENT & SUPPORT,59166,Computer Costs,Capital
20/12/2018,0549,3000.00,0.00,Fly Video Ltd,PUBLIC INFORMATION,40221,Publty/Promtn/Media,Revenue
20/12/2018,216637994,1035.04,0.00,FUCHS LUBRICANTS (UK) LTD,FLEET MAINTENANCE,30102,Dir Cost-Oil & Lubes,Revenue
20/12/2018,IRIN634079,16329.84,1445.42,Lex Autolease,WATER OFFICE,34001,Vehicle Leasing,Revenue
20/12/2018,MRI7841167,35254.19,2395.06,Lex Autolease,VARIOUS,34001,Vehicle Leasing,Revenue
20/12/2018,0409414/VAN,1261.98,0.00,Pelican Engineering Co (Sales),FLEET MAINTENANCE,30001,Dir Cost-Spare Parts,Revenue
20/12/2018,139221,3055.00,0.00,Physio Med Ltd,Health & Safety,18301,Specialists Fees,Revenue
20/12/2018,0005,500.00,0.00,Primal Kitchen Ltd,RECRUITS,40502,Food,Revenue
20/12/2018,CD20181034924,1231.21,0.00,Survitec Service & Distribution Ltd,OPERATIONS EQUIPMENT,40005,Operational Equ Pch,Revenue
20/12/2018,90368,999.50,0.00,Wm Sugden & Sons Ltd,SUPPLIES SECTION,41500,Clothing,Revenue
20/12/2018,90369,1019.15,0.00,Wm Sugden & Sons Ltd,SUPPLIES SECTION,41500,Clothing,Revenue
21/12/2018,1628520,3137.40,0.00,Bayford Oil,BRADFORD,30200,Vehicle Fuel,Revenue
21/12/2018,026752,584.30,0.00,BCS Electrics Ltd,CORPORATE MANAGEMENT & SUPPORT,59052,Cont-External,Capital
21/12/2018,INV/4337,792.00,0.00,Industrial Door Solutions Limited,FAIRWEATHER GREEN,21006,Appliance Bay Doors,Revenue
21/12/2018,6291257374,7703.14,0.00,Leeds City Council,VARIOUS,28502,Contract Cleaning,Revenue
21/12/2018,0000526117,600.00,0.00,Masta,Health & Safety,40026,First Aid Equ Pch,Revenue
21/12/2018,MC/177,1485.00,0.00,Montgomery & Coupers Ltd,PROPERTY,42511,Consultancy Fees,Revenue
21/12/2018,A0024279,4284.03,0.00,Pulse Cashflow Finance,VARIOUS,28502,Contract Cleaning,Revenue
21/12/2018,A0024280,5301.19,0.00,Pulse Cashflow Finance,VARIOUS,28502,Contract Cleaning,Revenue
21/12/2018,A0024281,871.12,0.00,Pulse Cashflow Finance,PONTEFRACT,28502,Contract Cleaning,Revenue
21/12/2018,A0024282,8262.44,0.00,Pulse Cashflow Finance,VARIOUS,28502,Contract Cleaning,Revenue
21/12/2018,23605,1200.00,0.00,Thornley & Lumb Partnership Ltd,CORPORATE MANAGEMENT & SUPPORT,59058,Fee-External,Capital
21/12/2018,23604,1000.00,0.00,Thornley & Lumb Partnership Ltd,CORPORATE MANAGEMENT & SUPPORT,59058,Fee-External,Capital
21/12/2018,89751919,6217.39,0.00,Vodafone (Mobiles),Information Technlgy,43017,Corporate Mobile Phone,Revenue
21/12/2018,655526690000002,1427.11,0.00,Yorkshire Water,CORPORATE MANAGEMENT & SUPPORT,59164,Equipment,Capital
21/12/2018,655526680000004,1427.11,0.00,Yorkshire Water,CORPORATE MANAGEMENT & SUPPORT,59164,Equipment,Capital
21/12/2018,655526620000005,958.29,0.00,Yorkshire Water,CORPORATE MANAGEMENT & SUPPORT,59164,Equipment,Capital
21/12/2018,655526630000003,958.29,0.00,Yorkshire Water,CORPORATE MANAGEMENT & SUPPORT,59164,Equipment,Capital
21/12/2018,655526640000001,1018.29,0.00,Yorkshire Water,CORPORATE MANAGEMENT & SUPPORT,59164,Equipment,Capital
21/12/2018,655526660000008,1023.29,0.00,Yorkshire Water,CORPORATE MANAGEMENT & SUPPORT,59164,Equipment,Capital
24/12/2018,SIN010791,9600.00,0.00,1Spatial Group Ltd,CORPORATE MANAGEMENT & SUPPORT,59166,Computer Costs,Capital
24/12/2018,1511313-01,-1035.72,0.00,Crossroads Truck & Bus Ltd,FLEET MAINTENANCE,30001,Dir Cost-Spare Parts,Revenue
24/12/2018,1512045-01,-557.73,0.00,Crossroads Truck & Bus Ltd,FLEET MAINTENANCE,30001,Dir Cost-Spare Parts,Revenue
24/12/2018,1511770-01,548.64,0.00,Crossroads Truck & Bus Ltd,FLEET MAINTENANCE,30001,Dir Cost-Spare Parts,Revenue
24/12/2018,1511794-01,945.72,0.00,Crossroads Truck & Bus Ltd,FLEET MAINTENANCE,30001,Dir Cost-Spare Parts,Revenue
24/12/2018,1511883-01,557.73,0.00,Crossroads Truck & Bus Ltd,FLEET MAINTENANCE,30001,Dir Cost-Spare Parts,Revenue
24/12/2018,INV/14272,606.00,0.00,DFP Services Limited,HUNSLET,21013,Electrical Reps (Fr),Revenue
24/12/2018,22083,3147.20,0.00,Emergency One (Uk) Ltd,FLEET MANAGEMENT,30004,Rep-Ext Contractors,Revenue
24/12/2018,22084,1103.00,0.00,Emergency One (Uk) Ltd,FLEET MAINTENANCE,30001,Dir Cost-Spare Parts,Revenue
24/12/2018,22071,4317.65,0.00,Emergency One (Uk) Ltd,FLEET MANAGEMENT,30004,Rep-Ext Contractors,Revenue
24/12/2018,22080,1229.05,0.00,Emergency One (Uk) Ltd,FLEET MANAGEMENT,30004,Rep-Ext Contractors,Revenue
24/12/2018,22081,2151.25,0.00,Emergency One (Uk) Ltd,FLEET MANAGEMENT,30004,Rep-Ext Contractors,Revenue
24/12/2018,22082,724.75,0.00,Emergency One (Uk) Ltd,FLEET MANAGEMENT,30004,Rep-Ext Contractors,Revenue
24/12/2018,974547,800.00,0.00,Gritit Ltd,PROPERTY,24000,Grounds Maintenance,Revenue
24/12/2018,0000045135,1345.32,0.00,John Dennis Coachbuilders,FLEET MAINTENANCE,30001,Dir Cost-Spare Parts,Revenue
24/12/2018,MJA01287,9000.00,0.00,Mja Consultants,CORPORATE MANAGEMENT & SUPPORT,59052,Cont-External,Capital
24/12/2018,14317/7,9387.80,0.00,Rance Booth & Smith Architects,PROPERTY,42511,Consultancy Fees,Revenue
24/12/2018,TUI226600056,3150.00,0.00,University Of Central Lancashi,TRAINING DELIVERY,19238,Ops Res Tng,Revenue
24/12/2018,655526780000001,633.11,0.00,Yorkshire Water,CORPORATE MANAGEMENT & SUPPORT,59164,Equipment,Capital
24/12/2018,655526700000006,909.66,0.00,Yorkshire Water,CORPORATE MANAGEMENT & SUPPORT,59164,Equipment,Capital
24/12/2018,655526670000006,1540.11,0.00,Yorkshire Water,CORPORATE MANAGEMENT & SUPPORT,59164,Equipment,Capital
24/12/2018,655526610000007,958.29,0.00,Yorkshire Water,CORPORATE MANAGEMENT & SUPPORT,59164,Equipment,Capital
24/12/2018,655526600000009,958.29,0.00,Yorkshire Water,CORPORATE MANAGEMENT & SUPPORT,59164,Equipment,Capital
24/12/2018,655526770000003,619.21,0.00,Yorkshire Water,CORPORATE MANAGEMENT & SUPPORT,59164,Equipment,Capital
24/12/2018,655526760000005,619.21,0.00,Yorkshire Water,CORPORATE MANAGEMENT & SUPPORT,59164,Equipment,Capital
24/12/2018,655526750000007,684.21,0.00,Yorkshire Water,CORPORATE MANAGEMENT & SUPPORT,59164,Equipment,Capital
24/12/2018,655526740000009,829.21,0.00,Yorkshire Water,CORPORATE MANAGEMENT & SUPPORT,59164,Equipment,Capital
24/12/2018,655526730000000,619.21,0.00,Yorkshire Water,CORPORATE MANAGEMENT & SUPPORT,59164,Equipment,Capital
24/12/2018,655526720000002,1078.83,0.00,Yorkshire Water,CORPORATE MANAGEMENT & SUPPORT,59164,Equipment,Capital
24/12/2018,655526710000004,868.83,0.00,Yorkshire Water,CORPORATE MANAGEMENT & SUPPORT,59164,Equipment,Capital
31/12/2018,758632285-2018-1,665.83,0.00,Amazon UK Services Ltd,CORPORATE MANAGEMENT & SUPPORT,59166,Computer Costs,Capital
31/12/2018,8596,1800.00,0.00,DPP One Limited,CORPORATE MANAGEMENT & SUPPORT,59058,Fee-External,Capital
31/12/2018,SI-1956,773.50,0.00,KC Business Services Ltd,FLEET MAINTENANCE,30005,Workshop Equipment,Revenue
31/12/2018,0946,575.00,0.00,Wm Projects Ltd,CORPORATE MANAGEMENT & SUPPORT,59052,Cont-External,Capital
